Workbook

Sheet 目錄
A1: 交 通 事 業 人 力 及 設 備 報 告
A2: 目 錄
A3: 壹、人力
B4: 表1 交通部及所屬機關（構）員工人數
B5: 表2 交通部及所屬機關 (構) 職員人數
A6: 貳、設備
B7: 表3 臺灣地區鐵路路線里程及車站數
B8: 表4 臺灣地區鐵路客貨車輛數
B9: 表5 臺灣鐵路管理局路線里程、橋梁、隧道及平交道
B10: 表6 臺灣鐵路管理局客貨車輛數
B11: 表7 臺灣鐵路管理局客貨車輛數－按已用年數分
B12: 表8 臺灣鐵路管理局車站數－按等級別分
B13: 表9 臺北大眾捷運公司營運路線、里程及車站數
B14: 表10 高雄捷運公司營運路線、里程及車站數
B15: 表11 臺灣地區道路里程
B16: 表12 臺灣地區道路面積
B17: 表13 臺灣地區道路橋梁概況
B18: 表14 臺灣地區省道路線里程、橋梁及隧道
B19: 表15 臺灣地區高速公路(國道)路線里程、橋梁、隧道、收費站、交流道
B20: 及服務區
B21: 表16 臺灣地區汽車運輸業家數
B22: 表17 臺閩地區機動車輛登記數
B23: 表18 臺閩地區各型汽車－按車齡分
B24: 表19 臺灣地區汽車停車場概況
B25: 表20 國籍航空公司適航航空器－按機種分
B26: 表21 國籍航空公司適航航空器－按機齡分
B27: 表22 臺閩地區民航機場設施
B28: 表23 臺閩地區民航機場助導航及航管設施
B29: 表24 國籍船舶登記數
B30: 表25 臺灣地區港埠概況
B31: 表26 臺灣地區港埠機具及車輛
B32: 表27 基隆港碼頭概況
B33: 表28 蘇澳港碼頭概況
B34: 表29 臺北港碼頭概況
B35: 表30 高雄港碼頭概況
B36: 表31 安平港碼頭概況
B37: 表32 臺中港碼頭概況
B38: 表33 花蓮港碼頭概況
B39: 表34 中華郵政股份有限公司主要設備及郵路里程
B40: 表35 臺閩地區觀光遊憩區統計
B41: 表36 臺閩地區觀光旅館概況
B42: 表37 臺閩地區觀光旅館－按縣市別分
B43: 表38 臺閩地區一般旅館－按縣市別分
B44: 表39 臺閩地區觀光旅館及一般旅館家數－按房間規模分
B45: 表40 臺閩地區旅行業家數
B46: 表41 臺閩地區氣象測站概況

Sheet 表1
A1: 表１ 交通部及所屬機關 ( 構 ) 員工人數 | I1: 表１ 交通部及所屬機關 ( 構 ) 員工人數 ( 續 1 ) | Y1: 表１ 交通部及所屬機關 ( 構 ) 員工人數 ( 續 2 ) | AF1: 表１ 交通部及所屬機關 ( 構 ) 員工人數 ( 續 3 ) | AM1: 表１ 交通部及所屬機關 ( 構 ) 員工人數 ( 續 4 ) | AT1: 表１ 交通部及所屬機關 ( 構 ) 員工人數 ( 續 5 ) | BA1: 表１ 交通部及所屬機關 ( 構 ) 員工人數 ( 續 6 ) | BH1: 表１ 交通部及所屬機關 ( 構 ) 員工人數 ( 續完 )
H2: 單位：人 | R2: 單位：人 | W2: 單位：人 | AE2: 單位：人 | AS2: 單位：人 | AZ2: 單位：人 | BG2: 單位：人 | BQ2: 單位：人
A3: 年 底 別 | B3: 總 計 | D3: 交 通 部 | G3: 運 輸 研 究 所 | I3: 年 底 別 | K3: 中華郵政股份有限公司 | N3: 電 信 總 局 | Q3: 中 華 電 信 公 司 | T3: 臺 灣 鐵 路 管 理 局 | W3: 鐵 路 改 建 工 程 局 | Y3: 年 底 別 | AA3: 高 速 鐵 路 工 程 局 | AD3: 臺灣區國道高速公路 局 | AF3: 年 底 別 | AH3: 臺灣區國道新建工程局 | AK3: 公 路 總 局 | AM3: 年 底 別 | AO3: 基 隆 港 務 局 | AR3: 高 雄 港 務 局 | AT3: 年 底 別 | AV3: 花 蓮 港 務 局 | AY3: 臺 中 港 務 局 | BA3: 年 底 別 | BC3: 民 用 航 空 局 | BF3: 桃 園 國 際 機 場 公 司 | BH3: 年 底 別 | BJ3: 觀 光 局 | BM3: 中 央 氣 象 局 | BO3: 其 他
C4: 計 | D4: 員 | E4: 工 | F4: 計 | G4: 員 | H4: 工 | J4: 計 | K4: 員 | L4: 工 | M4: 小 計 | N4: 員 | O4: 工 | P4: 小 計 | Q4: 員 | R4: 工 | S4: 計 | T4: 員 | U4: 工 | V4: 計 | W4: 員 | X4: 工 | Z4: 計 | AA4: 員 | AB4: 工 | AC4: 計 | AD4: 員 | AE4: 工 | AG4: 計 | AH4: 員 | AI4: 工 | AJ4: 計 | AK4: 員 | AL4: 工 | AN4: 計 | AO4: 員 | AP4: 工 | AQ4: 計 | AR4: 員 | AS4: 工 | AU4: 計 | AV4: 員 | AW4: 工 | AX4: 計 | AY4: 員 | AZ4: 工 | BB4: 計 | BC4: 員 | BD4: 工 | BE4: 計 | BF4: 員 | BG4: 工 | BI4: 計 | BJ4: 員 | BK4: 工 | BL4: 計 | BM4: 員 | BN4: 工 | BO4: 計 | BP4: 員 | BQ4: 工
A6: 60年底 | B6: =SUM(C6,F6,J6,S6,V6,Z6,AC6,AG6,AJ6,AN6,AQ6,AU6,AX6,BB6,BE6,BI6,BL6,BO6) -> 23635 | C6: =SUM(D6:E6) -> 183 | D6: 148 | E6: 35 | F6: =SUM(G6:H6) -> 147 | G6: 122 | H6: 25 | I6: 60年底 | J6: =SUM(K6:L6) -> 8318 | K6: 4140 | L6: 4178 | M6: =SUM(N6:O6) -> 12229 | N6: 9122 | O6: 3107 | P6: － | Q6: － | R6: － | S6: － | T6: － | U6: － | V6: － | W6: － | X6: － | Y6: 60年底 | Z6: － | AA6: － | AB6: － | AC6: =SUM(AD6:AE6) -> 327 | AD6: 281 | AE6: 46 | AF6: 60年底 | AG6: － | AH6: － | AI6: － | AJ6: － | AK6: － | AL6: － | AM6: 60年底 | AN6: － | AO6: － | AP6: － | AQ6: － | AR6: － | AS6: － | AT6: 60年底 | AU6: － | AV6: － | AW6: － | AX6: － | AY6: － | AZ6: － | BA6: 60年底 | BB6: =SUM(BC6:BD6) -> 597 | BC6: 402 | BD6: 195 | BE6: － | BF6: － | BG6: － | BH6: 60年底 | BI6: =SUM(BJ6:BK6) -> 95 | BJ6: 81 | BK6: 14 | BL6: =SUM(BM6:BN6) -> 520 | BM6: 416 | BN6: 104 | BO6: =SUM(BP6:BQ6) -> 13448 | BP6: 9255 | BQ6: 4193
A7: 70年底 | B7: =SUM(C7,F7,J7,S7,V7,Z7,AC7,AG7,AJ7,AN7,AQ7,AU7,AX7,BB7,BE7,BI7,BL7,BO7) -> 49281 | C7: 203 | D7: 166 | E7: 37 | F7: 117 | G7: 94 | H7: 23 | I7: 70年底 | J7: 16102 | K7: 6700 | L7: 9402 | M7: 27184 | N7: 21355 | O7: 5829 | P7: － | Q7: － | R7: － | S7: － | T7: － | U7: － | V7: － | W7: － | X7: － | Y7: 70年底 | Z7: － | AA7: － | AB7: － | AC7: 714 | AD7: 650 | AE7: 64 | AF7: 70年底 | AG7: － | AH7: － | AI7: － | AJ7: － | AK7: － | AL7: － | AM7: 70年底 | AN7: － | AO7: － | AP7: － | AQ7: － | AR7: － | AS7: － | AT7: 70年底 | AU7: － | AV7: － | AW7: － | AX7: － | AY7: － | AZ7: － | BA7: 70年底 | BB7: 2607 | BC7: 1605 | BD7: 1002 | BE7: － | BF7: － | BG7: － | BH7: 70年底 | BI7: 137 | BJ7: 114 | BK7: 23 | BL7: 560 | BM7: 446 | BN7: 114 | BO7: 28841 | BP7: 22126 | BQ7: 6715
A8: 80年底 | B8: 73940 | C8: 246 | D8: 209 | E8: 37 | F8: 103 | G8: 88 | H8: 15 | I8: 80年底 | J8: 28585 | K8: 14834 | L8: 13751 | M8: 36589 | N8: 25057 | O8: 11532 | P8: － | Q8: － | R8: － | S8: － | T8: － | U8: － | V8: =SUM(W8:X8) -> 479 | W8: 131 | X8: 348 | Y8: 80年底 | Z8: =SUM(AA8:AB8) -> 149 | AA8: 114 | AB8: 35 | AC8: 1207 | AD8: 997 | AE8: 210 | AF8: 80年底 | AG8: =SUM(AH8:AI8) -> 568 | AH8: 434 | AI8: 134 | AJ8: － | AK8: － | AL8: － | AM8: 80年底 | AN8: － | AO8: － | AP8: － | AQ8: － | AR8: － | AS8: － | AT8: 80年底 | AU8: － | AV8: － | AW8: － | AX8: － | AY8: － | AZ8: － | BA8: 80年底 | BB8: 3261 | BC8: 2440 | BD8: 821 | BE8: － | BF8: － | BG8: － | BH8: 80年底 | BI8: 370 | BJ8: 299 | BK8: 71 | BL8: 681 | BM8: 559 | BN8: 122 | BO8: 38291 | BP8: 25988 | BQ8: 12303
A9: 89年底 | B9: 66882 | C9: 497 | D9: 438 | E9: 59 | F9: 194 | G9: 151 | H9: 43 | I9: 89年底 | J9: 26237 | K9: 14423 | L9: 11814 | M9: 494 | N9: 471 | O9: 23 | P9: =SUM(Q9:R9) -> 34707 | Q9: 25118 | R9: 9589 | S9: =SUM(T9:U9) -> 16928 | T9: 15907 | U9: 1021 | V9: 1178 | W9: 384 | X9: 794 | Y9: 89年底 | Z9: 273 | AA9: 245 | AB9: 28 | AC9: 2502 | AD9: 2116 | AE9: 386 | AF9: 89年底 | AG9: 955 | AH9: 721 | AI9: 234 | AJ9: =SUM(AK9:AL9) -> 6669 | AK9: 6301 | AL9: 368 | AM9: 89年底 | AN9: =SUM(AO9:AP9) -> 1958 | AO9: 1748 | AP9: 210 | AQ9: =SUM(AR9:AS9) -> 2164 | AR9: 1709 | AS9: 455 | AT9: 89年底 | AU9: =SUM(AV9:AW9) -> 247 | AV9: 99 | AW9: 148 | AX9: =SUM(AY9:AZ9) -> 729 | AY9: 517 | AZ9: 212 | BA9: 89年底 | BB9: 4055 | BC9: 3272 | BD9: 783 | BE9: － | BF9: － | BG9: － | BH9: 89年底 | BI9: 614 | BJ9: 497 | BK9: 117 | BL9: 709 | BM9: 604 | BN9: 105 | BO9: 973 | BP9: 43 | BQ9: 930
A10: 90年底 | B10: 96798 | C10: 469 | D10: 416 | E10: 53 | F10: 191 | G10: 149 | H10: 42 | I10: 90年底 | J10: 25929 | K10: 14331 | L10: 11598 | M10: 494 | N10: 470 | O10: 24 | P10: =SUM(Q10:R10) -> 31421 | Q10: 23162 | R10: 8259 | S10: 16143 | T10: 15218 | U10: 925 | V10: 824 | W10: 382 | X10: 442 | Y10: 90年底 | Z10: 279 | AA10: 251 | AB10: 28 | AC10: 2466 | AD10: 2080 | AE10: 386 | AF10: 90年底 | AG10: 923 | AH10: 692 | AI10: 231 | AJ10: 6446 | AK10: 6207 | AL10: 239 | AM10: 90年底 | AN10: 1837 | AO10: 1651 | AP10: 186 | AQ10: 2026 | AR10: 1621 | AS10: 405 | AT10: 90年底 | AU10: 233 | AV10: 226 | AW10: 7 | AX10: 620 | AY10: 506 | AZ10: 114 | BA10: 90年底 | BB10: 4089 | BC10: 3314 | BD10: 775 | BE10: － | BF10: － | BG10: － | BH10: 90年底 | BI10: 697 | BJ10: 580 | BK10: 117 | BL10: 709 | BM10: 608 | BN10: 101 | BO10: 32917 | BP10: 23683 | BQ10: 9234
A11: 91年底 | B11: 86250 | C11: 446 | D11: 397 | E11: 49 | F11: 189 | G11: 150 | H11: 39 | I11: 91年底 | J11: 25304 | K11: 14132 | L11: 11172 | M11: 496 | N11: 472 | O11: 24 | P11: =SUM(Q11:R11) -> 28969 | Q11: 21149 | R11: 7820 | S11: 15097 | T11: 14354 | U11: 743 | V11: 790 | W11: 377 | X11: 413 | Y11: 91年底 | Z11: 283 | AA11: 257 | AB11: 26 | AC11: 2305 | AD11: 2072 | AE11: 233 | AF11: 91年底 | AG11: 876 | AH11: 663 | AI11: 213 | AJ11: 6443 | AK11: 6213 | AL11: 230 | AM11: 91年底 | AN11: 1726 | AO11: 1567 | AP11: 159 | AQ11: 1909 | AR11: 1542 | AS11: 367 | AT11: 91年底 | AU11: 228 | AV11: 222 | AW11: 6 | AX11: 574 | AY11: 533 | AZ11: 41 | BA11: 91年底 | BB11: 4094 | BC11: 3350 | BD11: 744 | BE11: － | BF11: － | BG11: － | BH11: 91年底 | BI11: 690 | BJ11: 575 | BK11: 115 | BL11: 695 | BM11: 602 | BN11: 93 | BO11: 24601 | BP11: 23673 | BQ11: 928
A12: 92年底 | B12: 83616 | C12: =SUM(D12:E12) -> 455 | D12: 406 | E12: 49 | F12: =SUM(G12:H12) -> 183 | G12: 144 | H12: 39 | I12: 92年底 | J12: =SUM(K12:L12) -> 24846 | K12: 13081 | L12: 11765 | M12: =SUM(N12:O12) -> 492 | N12: 468 | O12: 24 | P12: =SUM(Q12:R12) -> 29072 | Q12: 20997 | R12: 8075 | S12: 14206 | T12: 13569 | U12: 637 | V12: 791 | W12: 364 | X12: 427 | Y12: 92年底 | Z12: 278 | AA12: 252 | AB12: 26 | AC12: =SUM(AD12:AE12) -> 2212 | AD12: 1983 | AE12: 229 | AF12: 92年底 | AG12: 858 | AH12: 648 | AI12: 210 | AJ12: 6372 | AK12: 6147 | AL12: 225 | AM12: 92年底 | AN12: 1693 | AO12: 1555 | AP12: 138 | AQ12: 1859 | AR12: 1565 | AS12: 294 | AT12: 92年底 | AU12: 207 | AV12: 201 | AW12: 6 | AX12: 568 | AY12: 527 | AZ12: 41 | BA12: 92年底 | BB12: =SUM(BC12:BD12) -> 4058 | BC12: 3326 | BD12: 732 | BE12: － | BF12: － | BG12: － | BH12: 92年底 | BI12: =SUM(BJ12:BK12) -> 691 | BJ12: 578 | BK12: 113 | BL12: =SUM(BM12:BN12) -> 666 | BM12: 575 | BN12: 91 | BO12: 23673 | BP12: 23673 | BQ12: －
A13: 93年底 | B13: 88246 | C13: =SUM(D13:E13) -> 451 | D13: 405 | E13: 46 | F13: =SUM(G13:H13) -> 179 | G13: 140 | H13: 39 | I13: 93年底 | J13: =SUM(K13:L13) -> 24557 | K13: 12960 | L13: 11597 | M13: =SUM(N13:O13) -> 483 | N13: 459 | O13: 24 | P13: =SUM(Q13:R13) -> 28518 | Q13: 20461 | R13: 8057 | S13: 13839 | T13: 13273 | U13: 566 | V13: 782 | W13: 362 | X13: 420 | Y13: 93年底 | Z13: 278 | AA13: 253 | AB13: 25 | AC13: =SUM(AD13:AE13) -> 2039 | AD13: 1814 | AE13: 225 | AF13: 93年底 | AG13: 821 | AH13: 624 | AI13: 197 | AJ13: 6214 | AK13: 5997 | AL13: 217 | AM13: 93年底 | AN13: 1654 | AO13: 1528 | AP13: 126 | AQ13: 1801 | AR13: 1554 | AS13: 247 | AT13: 93年底 | AU13: 206 | AV13: 200 | AW13: 6 | AX13: 563 | AY13: 523 | AZ13: 40 | BA13: 93年底 | BB13: =SUM(BC13:BD13) -> 4502 | BC13: 3263 | BD13: 1239 | BE13: － | BF13: － | BG13: － | BH13: 93年底 | BI13: =SUM(BJ13:BK13) -> 689 | BJ13: 568 | BK13: 121 | BL13: =SUM(BM13:BN13) -> 659 | BM13: 570 | BN13: 89 | BO13: 29012 | BP13: 20926 | BQ13: 8086
A14: 94年底 | B14: 59629 | C14: =SUM(D14:E14) -> 446 | D14: 400 | E14: 46 | F14: =SUM(G14:H14) -> 187 | G14: 148 | H14: 39 | I14: 94年底 | J14: =SUM(K14:L14) -> 24987 | K14: 12922 | L14: 12065 | M14: =SUM(N14:O14) -> 484 | N14: 460 | O14: 24 | P14: － | Q14: － | R14: － | S14: 13769 | T14: 13228 | U14: 541 | V14: =SUM(W14:X14) -> 726 | W14: 341 | X14: 385 | Y14: 94年底 | Z14: =SUM(AA14:AB14) -> 267 | AA14: 245 | AB14: 22 | AC14: =SUM(AD14:AE14) -> 1947 | AD14: 1725 | AE14: 222 | AF14: 94年底 | AG14: =SUM(AH14:AI14) -> 798 | AH14: 606 | AI14: 192 | AJ14: 6146 | AK14: 5938 | AL14: 208 | AM14: 94年底 | AN14: 1557 | AO14: 1443 | AP14: 114 | AQ14: 1733 | AR14: 1542 | AS14: 191 | AT14: 94年底 | AU14: 196 | AV14: 190 | AW14: 6 | AX14: 548 | AY14: 511 | AZ14: 37 | BA14: 94年底 | BB14: =SUM(BC14:BD14) -> 4435 | BC14: 3247 | BD14: 1188 | BE14: － | BF14: － | BG14: － | BH14: 94年底 | BI14: =SUM(BJ14:BK14) -> 734 | BJ14: 617 | BK14: 117 | BL14: =SUM(BM14:BN14) -> 663 | BM14: 580 | BN14: 83 | BO14: =SUM(BP14:BQ14) -> 490 | BP14: 466 | BQ14: 24
A15: 95年底 | B15: 57867 | C15: =SUM(D15:E15) -> 464 | D15: 420 | E15: 44 | F15: =SUM(G15:H15) -> 183 | G15: 144 | H15: 39 | I15: 95年底 | J15: =SUM(K15:L15) -> 24411 | K15: 12733 | L15: 11678 | M15: － | N15: － | O15: － | P15: － | Q15: － | R15: － | S15: =SUM(T15:U15) -> 13363 | T15: 12763 | U15: 600 | V15: =SUM(W15:X15) -> 707 | W15: 340 | X15: 367 | Y15: 95年底 | Z15: =SUM(AA15:AB15) -> 286 | AA15: 266 | AB15: 20 | AC15: =SUM(AD15:AE15) -> 1826 | AD15: 1605 | AE15: 221 | AF15: 95年底 | AG15: =SUM(AH15:AI15) -> 771 | AH15: 587 | AI15: 184 | AJ15: =SUM(AK15:AL15) -> 6050 | AK15: 5850 | AL15: 200 | AM15: 95年底 | AN15: =SUM(AO15:AP15) -> 1462 | AO15: 1383 | AP15: 79 | AQ15: =SUM(AR15:AS15) -> 1673 | AR15: 1515 | AS15: 158 | AT15: 95年底 | AU15: =SUM(AV15:AW15) -> 199 | AV15: 193 | AW15: 6 | AX15: =SUM(AY15:AZ15) -> 531 | AY15: 494 | AZ15: 37 | BA15: 95年底 | BB15: =SUM(BC15:BD15) -> 4451 | BC15: 3589 | BD15: 862 | BE15: － | BF15: － | BG15: － | BH15: 95年底 | BI15: =SUM(BJ15:BK15) -> 803 | BJ15: 680 | BK15: 123 | BL15: =SUM(BM15:BN15) -> 681 | BM15: 600 | BN15: 81 | BO15: =SUM(BP15:BQ15) -> 6 | BP15: 6 | BQ15: －
A17: 96年底 | B17: 57031 | C17: 468 | D17: 424 | E17: 44 | F17: 177 | G17: 140 | H17: 37 | I17: 96年底 | J17: 24400 | K17: 12644 | L17: 11756 | M17: － | N17: － | O17: － | P17: － | Q17: － | R17: － | S17: 13221 | T17: 12621 | U17: 600 | V17: 773 | W17: 438 | X17: 335 | Y17: 96年底 | Z17: 409 | AA17: 360 | AB17: 49 | AC17: 1752 | AD17: 1535 | AE17: 217 | AF17: 96年底 | AG17: 503 | AH17: 387 | AI17: 116 | AJ17: 5847 | AK17: 5657 | AL17: 190 | AM17: 96年底 | AN17: 1452 | AO17: 1385 | AP17: 67 | AQ17: 1613 | AR17: 1487 | AS17: 126 | AT17: 96年底 | AU17: 196 | AV17: 190 | AW17: 6 | AX17: 523 | AY17: 488 | AZ17: 35 | BA17: 96年底 | BB17: 4217 | BC17: 3358 | BD17: 859 | BE17: － | BF17: － | BG17: － | BH17: 96年底 | BI17: =SUM(BJ17:BK17) -> 798 | BJ17: 683 | BK17: 115 | BL17: 678 | BM17: 603 | BN17: 75 | BO17: 4 | BP17: 4 | BQ17: －
A18: 97年底 | B18: 57023 | C18: 471 | D18: 427 | E18: 44 | F18: 173 | G18: 138 | H18: 35 | I18: 97年底 | J18: 24520 | K18: 12660 | L18: 11860 | S18: 13494 | T18: 12898 | U18: 596 | V18: 778 | W18: 448 | X18: 330 | Y18: 97年底 | Z18: 429 | AA18: 381 | AB18: 48 | AC18: 1700 | AD18: 1482 | AE18: 218 | AF18: 97年底 | AG18: 433 | AH18: 333 | AI18: 100 | AJ18: 5696 | AK18: 5508 | AL18: 188 | AM18: 97年底 | AN18: 1418 | AO18: 1351 | AP18: 67 | AQ18: 1569 | AR18: 1449 | AS18: 120 | AT18: 97年底 | AU18: 194 | AV18: 186 | AW18: 8 | AX18: 512 | AY18: 475 | AZ18: 37 | BA18: 97年底 | BB18: 4119 | BC18: 3289 | BD18: 830 | BE18: － | BF18: － | BG18: － | BH18: 97年底 | BI18: 843 | BJ18: 733 | BK18: 110 | BL18: 670 | BM18: 599 | BN18: 71 | BO18: 4 | BP18: 4 | BQ18: －
A19: 98年底 | B19: 56573 | C19: 485 | D19: 438 | E19: 47 | F19: 174 | G19: 140 | H19: 34 | I19: 98年底 | J19: 24236 | K19: 12609 | L19: 11627 | S19: 13473 | T19: 12868 | U19: 605 | V19: 897 | W19: 509 | X19: 388 | Y19: 98年底 | Z19: 416 | AA19: 369 | AB19: 47 | AC19: 1674 | AD19: 1457 | AE19: 217 | AF19: 98年底 | AG19: 412 | AH19: 320 | AI19: 92 | AJ19: 5627 | AK19: 5441 | AL19: 186 | AM19: 98年底 | AN19: 1331 | AO19: 1269 | AP19: 62 | AQ19: 1452 | AR19: 1340 | AS19: 112 | AT19: 98年底 | AU19: 185 | AV19: 181 | AW19: 4 | AX19: 511 | AY19: 474 | AZ19: 37 | BA19: 98年底 | BB19: 4162 | BC19: 3336 | BD19: 826 | BE19: － | BF19: － | BG19: － | BH19: 98年底 | BI19: =SUM(BJ19:BK19) -> 863 | BJ19: 743 | BK19: 120 | BL19: 671 | BM19: 600 | BN19: 71 | BO19: 4 | BP19: 4 | BQ19: －
A20: 99年底 | B20: 57565 | C20: 473 | D20: 425 | E20: 48 | F20: 169 | G20: 135 | H20: 34 | I20: 99年底 | J20: 25362 | K20: 12165 | L20: 13197 | S20: 13603 | T20: 13004 | U20: 599 | V20: 866 | W20: 517 | X20: 349 | Y20: 99年底 | Z20: 449 | AA20: 372 | AB20: 77 | AC20: 1624 | AD20: 1407 | AE20: 217 | AF20: 99年底 | AG20: 412 | AH20: 321 | AI20: 91 | AJ20: 5511 | AK20: 5329 | AL20: 182 | AM20: 99年底 | AN20: 1284 | AO20: 1226 | AP20: 58 | AQ20: 1419 | AR20: 1313 | AS20: 106 | AT20: 99年底 | AU20: 178 | AV20: 170 | AW20: 8 | AX20: 481 | AY20: 446 | AZ20: 35 | BA20: 99年底 | BB20: 3778 | BC20: 3087 | BD20: 691 | BE20: =SUM(BF20:BG20) -> 418 | BF20: 280 | BG20: 138 | BH20: 99年底 | BI20: =SUM(BJ20:BK20) -> 859 | BJ20: 725 | BK20: 134 | BL20: 675 | BM20: 605 | BN20: 70 | BO20: 4 | BP20: 4 | BQ20: －
A21: 100年底 | B21: 57410 | C21: 474 | D21: 422 | E21: 52 | F21: 169 | G21: 136 | H21: 33 | I21: 100年底 | J21: 25389 | K21: 12078 | L21: 13311 | S21: 13794 | T21: 13199 | U21: 595 | V21: 802 | W21: 503 | X21: 299 | Y21: 100年底 | Z21: 415 | AA21: 370 | AB21: 45 | AC21: 1556 | AD21: 1342 | AE21: 214 | AF21: 100年底 | AG21: 420 | AH21: 331 | AI21: 89 | AJ21: 5370 | AK21: 5192 | AL21: 178 | AM21: 100年底 | AN21: 1266 | AO21: 1210 | AP21: 56 | AQ21: 1422 | AR21: 1327 | AS21: 95 | AT21: 100年底 | AU21: 173 | AV21: 165 | AW21: 8 | AX21: 448 | AY21: 416 | AZ21: 32 | BA21: 100年底 | BB21: 3745 | BC21: 3070 | BD21: 675 | BE21: =SUM(BF21:BG21) -> 419 | BF21: 323 | BG21: 96 | BH21: 100年底 | BI21: =SUM(BJ21:BK21) -> 870 | BJ21: 737 | BK21: 133 | BL21: 678 | BM21: 607 | BN21: 71 | BO21: － | BP21: － | BQ21: －
A23: 說明：1.本表員工人數包含正式職員、約聘、僱人員、工 友、技工等，不包括駐警人員、臨時 | I23: 說明：郵政總局自92年1月1日起改制成立「中華郵政股份有限公司」。 | AM23: 說明：基隆港務局員工人數包含蘇澳港分局及臺北港分局等附屬港資料；高雄港務局員 | BA23: 說明：桃園國際機場股份有限公司於99年11月1日成立，以下簡稱為桃園國際機場公司。 | BH23: 說明：1.其他包括電信總局、中華電信公司、臺灣汽車客運公司、臺灣鐵路貨物搬運公司、
A24: 人員。 | AM24: 工人數包含安平港分局資料。 | BH24: 陽明海運公司及招商局員工人數。
A25: 2.自88年7月1日起，臺灣省政府交通處裁併入交通部，其所屬旅遊局裁併入觀光局，臺 | BH25: 2.招商局自84年7月起併入陽明海運公司，陽明海運公司於85年2月15日起改制民營；
A26: 灣鐵路管理局、臺灣鐵路貨物搬運公司、公路局、臺灣汽車客運公司及各港務局均改 | BH26: 臺灣鐵路貨物搬運公司自88年7月1日起改隸交通部，並於92年1月1日改制民營。
A27: 隸交通部。 | BH27: 3.本表其他94至99年底係含臺灣汽車客運股份有限公司資料，100年底因該公司自100
A28: 3.電信總局於85年7月1日將電信事業部分改制為中華電信公司，該公司自94年8月12日起 | BH28: 年7月1日起解散清查，已不列入計算。
A29: 改制民營，93年以前「總計」包含該公司資料；另電信總局自95年2月22日起電信監理
A30: 業務轉由國家通訊傳播委員會(NCC)辦理，94年以前「總計」包含該總局資料。

Sheet 表2
A1: 表 2 交通部及所屬機關(構)正式職員人數 | I1: 表 2 交通部及所屬機關(構)正式職員人數 ( 續1 ) | Q1: 表 2 交通部及所屬機關(構)正式職員人數 ( 續完 )
A2: 民國 100 年底 | L2: 民國 100 年底 | O2: 單位：人 | S2: 民國 100 年底 | W2: 單位：人
B3: 總 計 | C3: 年 齡 別 | J3: 教 育 程 度 別 | R3: 進 用 別
A4: 項目別 | I4: 項目別 | Q4: 項目別 | R4: 考 試 及 格 | X4: 依其他
A5: 機關別 | C5: 未滿 | D5: 30-未滿 | E5: 40-未滿 | F5: 50-未滿 | G5: 60歲 | H5: 平均 | I5: 機關別 | J5: 大 專 以 上 | O5: 高中 | P5: 國(初)中 | Q5: 機關別 | R5: 計 | T5: 高 普 考 試 | V5: 特 考 | W5: 其他 | X5: 法 令
C6: 30歲 | D6: 40歲 | E6: 50歲 | F6: 60歲 | G6: 以上 | H6: 年齡 | J6: 計 | K6: 博士 | L6: 碩士 | M6: 大學 | N6: 專科 | O6: (職) | P6: 及其他 | S6: 小 計 | T6: 高 考 | U6: 普 考 | W6: 考試 | X6: 進 用
A7: 總計 | B7: =SUM(B8:B24) -> 36316 | C7: 1727 | D7: 4463 | E7: 11082 | F7: 15324 | G7: 3720 | H7: 48.8 | I7: 總計 | J7: =SUM(K7:N7) -> 23735 | K7: =SUM(K8:K24) -> 163 | L7: 3492 | M7: 9835 | N7: 10245 | O7: 10555 | P7: 2026 | Q7: 總計 | R7: =SUM(R8:R24) -> 34305 | S7: =SUM(T7:U7) -> 3167 | T7: =SUM(T8:T24) -> 2020 | U7: =SUM(U8:U24) -> 1147 | V7: =SUM(V8:V24) -> 13726 | W7: =SUM(W8:W24) -> 17412 | X7: =SUM(X8:X24) -> 2011
A8: 交通部 | B8: =SUM(C8:G8) -> 353 | C8: 15 | D8: 82 | E8: 141 | F8: 88 | G8: 27 | H8: 45.7 | I8: =A8 -> 交通部 | J8: =SUM(K8:N8) -> 346 | K8: 8 | L8: 174 | M8: 133 | N8: 31 | O8: 7 | P8: － | Q8: 交通部 | R8: =SUM(T8:W8) -> 346 | S8: =SUM(T8:U8) -> 184 | T8: 169 | U8: 15 | V8: 86 | W8: 76 | X8: 7
A9: 運輸研究所 | B9: 131 | C9: 2 | D9: 23 | E9: 49 | F9: 43 | G9: 14 | H9: 48.1 | I9: 運輸研究所 | J9: =SUM(K9:N9) -> 125 | K9: 27 | L9: 75 | M9: 13 | N9: 10 | O9: 5 | P9: 1 | Q9: 運輸研究所 | R9: =SUM(T9:W9) -> 105 | S9: =SUM(T9:U9) -> 62 | T9: 58 | U9: 4 | V9: 16 | W9: 27 | X9: 26
A10: 中華郵政公司 | B10: 12078 | C10: 161 | D10: 756 | E10: 3951 | F10: 5819 | G10: 1391 | H10: 51 | I10: 中華郵政公司 | J10: 8643 | K10: 2 | L10: 325 | M10: 3721 | N10: 4595 | O10: 3197 | P10: 238 | Q10: 中華郵政公司 | R10: =SUM(T10:W10) -> 12075 | S10: =SUM(T10:U10) -> 698 | T10: 366 | U10: 332 | V10: 5637 | W10: 5740 | X10: 3
A11: 臺灣鐵路管理局 | B11: 12238 | C11: 918 | D11: 1805 | E11: 3372 | F11: 5105 | G11: 1038 | H11: 47.7 | I11: 臺灣鐵路管理局 | J11: 5984 | K11: 5 | L11: 494 | M11: 2557 | N11: 2928 | O11: 4984 | P11: 1270 | Q11: 臺灣鐵路管理局 | R11: 11813 | S11: 99 | T11: 73 | U11: 26 | V11: 5880 | W11: 5834 | X11: 425
A12: 鐵路改建工程局 | B12: 485 | C12: 10 | D12: 59 | E12: 245 | F12: 148 | G12: 23 | H12: 47.3 | I12: 鐵路改建工程局 | J12: 473 | K12: 7 | L12: 173 | M12: 171 | N12: 122 | O12: 12 | P12: － | Q12: 鐵路改建工程局 | R12: 93 | S12: 44 | T12: 31 | U12: 13 | V12: 35 | W12: 14 | X12: 392
A13: 高速鐵路工程局 | B13: 355 | C13: 1 | D13: 30 | E13: 187 | F13: 114 | G13: 23 | H13: 48.5 | I13: 高速鐵路工程局 | J13: 353 | K13: 13 | L13: 164 | M13: 114 | N13: 62 | O13: 2 | P13: － | Q13: 高速鐵路工程局 | R13: 127 | S13: 48 | T13: 41 | U13: 7 | V13: 22 | W13: 57 | X13: 228
A14: 臺灣區國道高速公路局 | B14: 934 | C14: 32 | D14: 110 | E14: 268 | F14: 425 | G14: 99 | H14: 49.6 | I14: 臺灣區國道高速公路局 | J14: 673 | K14: 2 | L14: 195 | M14: 234 | N14: 242 | O14: 186 | P14: 75 | Q14: 臺灣區國道高速公路局 | R14: 851 | S14: 158 | T14: 116 | U14: 42 | V14: 93 | W14: 600 | X14: 83
A15: 臺灣區國道新建工程局 | B15: 293 | C15: 3 | D15: 23 | E15: 118 | F15: 116 | G15: 33 | H15: 50 | I15: 臺灣區國道新建工程局 | J15: 287 | K15: 7 | L15: 114 | M15: 85 | N15: 81 | O15: 6 | P15: － | Q15: 臺灣區國道新建工程局 | R15: 99 | S15: 32 | T15: 24 | U15: 8 | V15: 12 | W15: 55 | X15: 194
A16: 公路總局 | B16: 3894 | C16: 308 | D16: 725 | E16: 1264 | F16: 1364 | G16: 233 | H16: 46.1 | I16: 公路總局 | J16: 2918 | K16: 15 | L16: 594 | M16: 1267 | N16: 1042 | O16: 821 | P16: 155 | Q16: 公路總局 | R16: 3700 | S16: 572 | T16: 277 | U16: 295 | V16: 793 | W16: 2335 | X16: 194
A17: 基隆港務局 | B17: 1172 | C17: 20 | D17: 37 | E17: 163 | F17: 605 | G17: 347 | H17: 54.7 | I17: 基隆港務局 | J17: 516 | K17: 8 | L17: 145 | M17: 137 | N17: 226 | O17: 523 | P17: 133 | Q17: 基隆港務局 | R17: 1141 | S17: 107 | T17: 91 | U17: 16 | V17: 162 | W17: 872 | X17: 31
A18: 高雄港務局 | B18: 1238 | C18: 27 | D18: 53 | E18: 227 | F18: 665 | G18: 266 | H18: 53.3 | I18: 高雄港務局 | J18: 651 | K18: 3 | L18: 98 | M18: 227 | N18: 323 | O18: 469 | P18: 118 | Q18: 高雄港務局 | R18: 1238 | S18: 178 | T18: 145 | U18: 33 | V18: 170 | W18: 890 | X18: 0
A19: 花蓮港務局 | B19: 147 | C19: 6 | D19: 7 | E19: 30 | F19: 72 | G19: 32 | H19: 52.4 | I19: 花蓮港務局 | J19: 77 | K19: 1 | L19: 9 | M19: 18 | N19: 49 | O19: 61 | P19: 9 | Q19: 花蓮港務局 | R19: 147 | S19: 18 | T19: 14 | U19: 4 | V19: 27 | W19: 102 | X19: 0
A20: 臺中港務局 | B20: 364 | C20: 9 | D20: 34 | E20: 80 | F20: 156 | G20: 85 | H20: 51.9 | I20: 臺中港務局 | J20: 233 | K20: 1 | L20: 84 | M20: 84 | N20: 64 | O20: 106 | P20: 25 | Q20: 臺中港務局 | R20: 340 | S20: 60 | T20: 54 | U20: 6 | V20: 63 | W20: 217 | X20: 24
A21: 民用航空局 | B21: 1166 | C21: 96 | D21: 321 | E21: 451 | F21: 239 | G21: 59 | H21: 43.5 | I21: 民用航空局 | J21: 1115 | K21: 10 | L21: 322 | M21: 539 | N21: 244 | O21: 51 | P21: － | Q21: 民用航空局 | R21: =SUM(T21:W21) -> 1093 | S21: 315 | T21: 206 | U21: 109 | V21: 526 | W21: 252 | X21: 73
A22: 桃園國際機場公司 | B22: 323 | C22: 29 | D22: 123 | E22: 73 | F22: 76 | G22: 22 | H22: 42.9 | I22: 桃園國際機場公司 | J22: 247 | K22: 2 | L22: 70 | M22: 102 | N22: 73 | O22: 76 | P22: － | Q22: 桃園國際機場公司 | R22: =SUM(T22:W22) -> 102 | S22: 27 | T22: 23 | U22: 4 | V22: 31 | W22: 44 | X22: 221
A23: 觀光局 | B23: 566 | C23: 35 | D23: 145 | E23: 220 | F23: 152 | G23: 14 | H23: 44.3 | I23: 觀光局 | J23: 538 | K23: 9 | L23: 232 | M23: 206 | N23: 91 | O23: 28 | P23: － | Q23: 觀光局 | R23: =SUM(T23:W23) -> 540 | S23: 233 | T23: 176 | U23: 57 | V23: 136 | W23: 171 | X23: 26
A24: 中央氣象局 | B24: 579 | C24: 55 | D24: 130 | E24: 243 | F24: 137 | G24: 14 | H24: 43.6 | I24: 中央氣象局 | J24: 556 | K24: 43 | L24: 224 | M24: 227 | N24: 62 | O24: 21 | P24: 2 | Q24: 中央氣象局 | R24: =SUM(T24:W24) -> 495 | S24: 332 | T24: 156 | U24: 176 | V24: 37 | W24: 126 | X24: 84
A25: 說明：1.本表人員僅為正式職員，即依組織法規或任用法規進用之正式人員。
A26: 2.基隆港務局員工人數包含蘇澳港分局及臺北港分局等附屬港資料；高雄港務局員
A27: 工人數包含安平港分局資料。

Sheet 表3
A1: 表 3 臺灣地區鐵路路線里程及車站數
A2: 民國 100 年底
A3: 機 關 ( 構 ) | B3: 路 線 里 程 | D3: 車 站 數 | F3: 軌 道 長 度
B4: ( 公里 ) | D4: ( 座 ) | F4: ( 公里 )
A5: 總 計 | B5: =SUM(B6:C10) -> 1709.6 | D5: =SUM(D6:E10) -> 381 | F5: =SUM(F6:F10) -> 3911.8
A6: 臺灣鐵路管理局 | B6: 1086.5 | D6: 224 | F6: 2495.1
A7: 臺灣高鐵公司 | B7: 340 | D7: 8 | F7: 736.3
A8: 臺北大眾捷運公司 | B8: 101.9 | D8: 94 | F8: 299.9
A9: 高雄捷運公司 | B9: 42.9 | D9: 37 | F9: 121.2
A10: 生產事業機構 | B10: 138.3 | D10: 18 | F10: 259.3
A11: 說明：生產事業機構包含臺糖、臺泥及臺電公司。

Sheet 表4
A1: 表 4 臺灣地區鐵路客貨車輛數
C2: 民國 100 年底 | G2: 單位：輛
A3: 機 關 ( 構 ) | B3: 總 計 | C3: 機 車 | D3: 電 聯 車 | E3: 柴油客車 | F3: 客 車 | G3: 貨 車
A4: 總 計 | B4: =SUM(B5:B9) -> 8704 | C4: 485 | D4: 2164 | E4: 254 | F4: 1357 | G4: 4444
A5: 臺灣鐵路管理局 | B5: =SUM(C5:G5) -> 4263 | C5: 285 | D5: 723 | E5: 223 | F5: 1083 | G5: 1949
A6: 臺灣高鐵公司 | B6: =SUM(C6:G6) -> 360 | C6: － | D6: 360 | E6: － | F6: － | G6: －
A7: 臺北大眾捷運公司 | B7: =SUM(C7:G7) -> 955 | C7: － | D7: 955 | E7: － | F7: － | G7: －
A8: 高雄捷運公司 | B8: =SUM(C8:G8) -> 130 | C8: － | D8: 126 | E8: － | F8: 2 | G8: 2
A9: 生產事業機構 | B9: =SUM(C9:G9) -> 2996 | C9: 200 | D9: － | E9: 31 | F9: 272 | G9: 2493
A10: 說明：臺灣高鐵公司共30組列車，每組12節車廂，故有360輛。

Sheet 表5
A1: 表 5 臺灣鐵路管理局路線營業里程、橋梁、隧道及平交道
D2: 民國100 年底
A3: 線 別 | C3: 路 線 | E3: 橋 | F3: 梁 | G3: 隧 | H3: 道 | I3: 平交道
B4: 營業里程 | C4: 車 站 數 | D4: 軌道長度 | E4: 座 數 | F4: 長 度 | G4: 座 數 | H4: 長 度 | I4: (處)
B5: (公里) | C5: (站) | D5: (公里) | E5: (座) | F5: (公尺) | G5: (座) | H5: (公尺)
A6: 總計 | B6: =SUM(B7:B22) -> 1086.5 | C6: 224 | D6: 2495 | E6: 1787 | F6: 84085 | G6: 133 | H6: 151721 | I6: 542
A7: 縱貫線 | B7: 404.5 | C7: 88 | D7: 1079 | E7: 735 | F7: 24428 | G7: 8 | H7: 23132 | I7: 223
A8: 林口線 | B8: 19.2 | C8: － | D8: 20 | E8: 45 | F8: 488 | G8: － | H8: － | I8: 45
A9: 內灣線 | B9: 26.5 | C9: 11 | D9: 43 | E9: 31 | F9: 1061 | G9: 5 | H9: 977 | I9: 7
A10: 六家線 | B10: 3.1 | C10: 1 | D10: － | E10: － | F10: － | G10: － | H10: － | I10: －
A11: 臺中線 | B11: 87.7 | C11: 16 | D11: 204 | E11: 147 | F11: 12090 | G11: 7 | H11: 10545 | I11: 30
A12: 臺中港線 | B12: － | C12: － | D12: 32 | E12: 5 | F12: 140 | G12: － | H12: － | I12: 20
A13: 集集線 | B13: 29.7 | C13: 6 | D13: 31 | E13: 82 | F13: 680 | G13: 9 | H13: 2361 | I13: 29
A14: 沙崙線 | B14: 5.3 | C14: 2 | D14: － | E14: － | F14: － | G14: － | H14: － | I14: －
A15: 屏東線 | B15: 61.3 | C15: 17 | D15: 263 | E15: 129 | F15: 3705 | G15: － | H15: － | I15: 61
A16: 宜蘭線 | B16: 93.6 | C16: 26 | D16: 214 | E16: 154 | F16: 11186 | G16: 25 | H16: 10542 | I16: 34
A17: 深澳線 | B17: 6 | C17: － | D17: 5 | E17: 2 | F17: 21 | G17: 3 | H17: 372 | I17: 2
A18: 平溪線 | B18: 12.9 | C18: 6 | D18: 14 | E18: 12 | F18: 375 | G18: 6 | H18: 583 | I18: 1
A19: 北迴線 | B19: 79.2 | C19: 12 | D19: 190 | E19: 88 | F19: 6752 | G19: 22 | H19: 51169 | I19: 13
A20: 花蓮港線 | B20: 7.4 | C20: 1 | D20: 20 | E20: 10 | F20: 361 | G20: － | H20: － | I20: 2
A21: 臺東線 | B21: 151.9 | C21: 27 | D21: 235 | E21: 191 | F21: 13514 | G21: 11 | H21: 11936 | I21: 63
A22: 南迴線 | B22: 98.2 | C22: 11 | D22: 144 | E22: 156 | F22: 9287 | G22: 37 | H22: 40104 | I22: 12
A23: 說明：六家線及沙崙線自100年起加入營運。

Sheet 表6
A1: 表 6 臺灣鐵路管理局客貨車輛數
H2: 單位：輛
A3: 年 底 別 | B3: 總 計 | C3: 電力機車 | D3: 柴電機車 | E3: 柴液機車 | F3: 電 聯 車 | G3: 柴油客車 | H3: 客 車 | I3: 貨 車 | L3: .
A4: 80 年底 | B4: =SUM(C4:I4) -> 7107 | C4: 111 | D4: 155 | E4: － | F4: 169 | G4: 221 | H4: 1284 | I4: 5167
A5: 86 年底 | B5: 5867 | C5: 154 | D5: 146 | E5: － | F5: 441 | G5: 186 | H5: 1302 | I5: 3638
A6: 87 年底 | B6: 5829 | C6: 180 | D6: 146 | E6: － | F6: 509 | G6: 212 | H6: 1407 | I6: 3375
A7: 88 年底 | B7: 5665 | C7: 179 | D7: 142 | E7: － | F7: 507 | G7: 246 | H7: 1394 | I7: 3197
A8: 89 年底 | B8: 5529 | C8: 179 | D8: 141 | E8: － | F8: 507 | G8: 234 | H8: 1370 | I8: 3098
A9: 90 年底 | B9: 5269 | C9: 179 | D9: 148 | E9: － | F9: 515 | G9: 234 | H9: 1328 | I9: 2865
A10: 91 年底 | B10: =SUM(C10:I10) -> 5306 | C10: 179 | D10: 143 | E10: 1 | F10: 563 | G10: 230 | H10: 1354 | I10: 2836
A11: 92 年底 | B11: =SUM(C11:I11) -> 5235 | C11: 179 | D11: 140 | E11: 16 | F11: 563 | G11: 230 | H11: 1352 | I11: 2755
A13: 93 年底 | B13: =SUM(C13:I13) -> 5167 | C13: 174 | D13: 137 | E13: 16 | F13: 562 | G13: 230 | H13: 1324 | I13: 2724
A14: 94 年底 | B14: 5032 | C14: 161 | D14: 135 | E14: 16 | F14: 562 | G14: 228 | H14: 1286 | I14: 2644
A15: 95 年底 | B15: 4878 | C15: 161 | D15: 131 | E15: 16 | F15: 562 | G15: 226 | H15: 1265 | I15: 2517
A16: 96 年底 | B16: 4909 | C16: 161 | D16: 130 | E16: 16 | F16: 722 | G16: 225 | H16: 1234 | I16: 2421
A17: 97 年底 | B17: 4721 | C17: 156 | D17: 122 | E17: 16 | F17: 770 | G17: 224 | H17: 1214 | I17: 2219
A18: 98 年底 | B18: 4497 | C18: 155 | D18: 117 | E18: 16 | F18: 770 | G18: 224 | H18: 1121 | I18: 2094
A19: 99 年底 | B19: =SUM(C19:I19) -> 4397 | C19: 155 | D19: 115 | E19: 16 | F19: 753 | G19: 223 | H19: 1092 | I19: 2043
A20: 100 年底 | B20: 4263 | C20: 155 | D20: 114 | E20: 16 | F20: 723 | G20: 223 | H20: 1083 | I20: 1949
A21: 說明：「電力機車」含推拉式電力機車，「柴油客車」含動力車及拖車，「客車」含推拉式客車、
A22: 餐車、各等級客車、臥車、客守車及行李車。

Sheet 表7
A1: 表 7 臺灣鐵路管理局客貨車輛數－按已用年數分
B2: 民國100 年底 | H2: 單位：輛
A3: 已 用 年 數 | B3: 總 計 | C3: 電力機車 | D3: 柴電機車 | E3: 柴液機車 | F3: 電 聯 車 | G3: 柴油客車 | H3: 客 車 | I3: 貨 車
A4: 總 計 | B4: =SUM(C4:I4) -> 4263 | C4: =SUM(C5:C11) -> 155 | D4: =SUM(D5:D11) -> 114 | E4: =SUM(E6:E11) -> 16 | F4: 723 | G4: 223 | H4: 1083 | I4: 1949
A5: 未 滿 5 年 | B5: 208 | C5: － | D5: － | E5: － | F5: 208 | G5: － | H5: － | I5: －
A6: 5－未滿10年 | B6: 202 | C6: － | D6: 6 | E6: 16 | F6: 56 | G6: － | H6: 50 | I6: 74
A7: 10－未滿15年 | B7: 647 | C7: 64 | D7: － | E7: － | F7: 140 | G7: 66 | H7: 336 | I7: 41
A8: 15－未滿20年 | B8: 279 | C8: 5 | D8: 4 | E8: － | F8: 202 | G8: 2 | H8: 46 | I8: 20
A9: 20－未滿30年 | B9: 586 | C9: 5 | D9: 5 | E9: － | F9: 102 | G9: 138 | H9: 87 | I9: 249
A10: 30－未滿40年 | B10: 1203 | C10: 81 | D10: 19 | E10: － | F10: 15 | G10: － | H10: 223 | I10: 865
A11: 40 年 以 上 | B11: 1138 | C11: － | D11: 80 | E11: － | F11: － | G11: 17 | H11: 341 | I11: 700

Sheet 表8
A1: 表 8 臺灣鐵路管理局車站數－按等級別分
D2: 民國100 年底 | H2: 單位：站
A3: 運 務 段 別 | B3: 總 計 | C3: 特等站 | D3: 一等站 | E3: 二等站 | F3: 三等站 | G3: 簡易站 | H3: 招呼站
A5: 總 計 | B5: =SUM(B6,B7,B8,B9,B10) -> 224 | C5: 3 | D5: 27 | E5: 24 | F5: 77 | G5: 49 | H5: 44
A6: 臺 北 運 務 段 | B6: =SUM(C6:H6) -> 41 | C6: 1 | D6: 9 | E6: 5 | F6: 8 | G6: 13 | H6: 5
A7: 臺 中 運 務 段 | B7: =SUM(C7:H7) -> 48 | C7: 1 | D7: 5 | E7: 5 | F7: 15 | G7: 11 | H7: 11
A8: 高 雄 運 務 段 | B8: =SUM(C8:H8) -> 56 | C8: 1 | D8: 7 | E8: 7 | F8: 16 | G8: 14 | H8: 11
A9: 花 蓮 運 務 段 | B9: =SUM(C9:H9) -> 42 | C9: － | D9: 3 | E9: 2 | F9: 28 | G9: 2 | H9: 7
A10: 宜 蘭 運 務 段 | B10: =SUM(C10:H10) -> 37 | C10: － | D10: 3 | E10: 5 | F10: 10 | G10: 9 | H10: 10
A12: 說明：臺北運務段含基隆－香山，北新竹－內灣，竹中－六家，桃園－林口。
A13: 臺中運務段含崎頂－二水，竹南－彰化，成功－追分，二水－車埕。
A14: 高雄運務段含林內－高雄，中洲－沙崙，高雄－枋寮，枋寮－枋野。
A15: 花蓮運務段含和平－臺東，北埔－花蓮港，花蓮－花蓮港，臺東－古莊。
A16: 宜蘭運務段含暖暖－蘇澳，蘇澳新－漢本，瑞芳－深澳，三貂嶺－菁桐。

Sheet 表9
A1: 表 9 臺北大眾捷運公司營運路線、里程及車站數
A2: 年底別 | B2: 路 線 名 稱 | C2: 路線里程 | D2: 車站數 | E2: 備 註
C3: (公里) | D3: (站)
A4: 85年底 | B4: 木柵線 | C4: 10.5 | D4: 12 | E4: 木柵線自85年3月開始營運。
A5: 86年底 | B5: 木柵線、淡水線 | C5: 32.4 | D5: 32 | E5: 淡水線臺北車站至淡水站及淡水線新
E6: 北投支線均自86年3月開始營運。
A7: 87年底 | B7: 木柵線、淡水線、 | C7: 40.3 | D7: 39 | E7: 新店線北段及中和線自87年12月開始
B8: 新店線北段及中和線 | E8: 營運。
A9: 88年底 | B9: 木柵線、淡水線、新店線 | C9: 56.4 | D9: 54 | E9: 新店線自88年11月開始全線營運，板
B10: 、中和線、板南線 | E10: 南線龍山寺站至市政府站自88年12月
E11: 開始營運。
A12: 89年底 | B12: 木柵線、淡水線、新店線、 | C12: 65.1 | D12: 60 | E12: 板南線新埔站至龍山寺站及小南門線
B13: 中和線、 板南線、小南門線 | E13: 均自89年8月開始營運。板南線市政府
E14: 站至昆陽站自89年12月開始營運。
A15: 90年 | B15: 木柵線、淡水線、新店線、 | C15: 65.1 | D15: 60
B16: 中和線、板南線 ( 新埔站
B17: －昆陽站 )、小南門線
A18: 91年 | B18: 木柵線、淡水線、新店線、 | C18: 65.1 | D18: 60
B19: 中和線、板南線 ( 新埔站
B20: －昆陽站 )、小南門線
A21: 92年 | B21: 木柵線、淡水線、新店線、 | C21: 65.1 | D21: 60
B22: 、中和線、板南線( 新埔站
B23: －昆陽站 )、小南門線
A24: 93年底 | B24: 木柵線、淡水線、新店線、 | C24: 67 | D24: 61 | E24: 新店線小碧潭支線自93年9月開始營運。
B25: 中和線、板南線、小南門線
A26: 94年底 | B26: 木柵線、淡水線、新店線、 | C26: 67 | D26: 63 | E26: 板南線自94年9月更名切分為板橋線(西
B27: 中和線、板橋線、南港線、 | E27: 門站至新埔站)及南港線(西門站至昆陽
B28: 小南門線 | E28: 站)。
A29: 95年底 | B29: 木柵線、淡水線、新店線、 | C29: 74.4 | D29: 69 | E29: 板橋線新埔站至府中站及土城線府中
B30: 中和線、板橋線、南港線、 | E30: 站至永寧站均自95年5月31日開始營運。
B31: 小南門線、土城線
A32: 97年底 | B32: 木柵線、淡水線、新店線、 | C32: 75.8 | D32: 70 | E32: 南港線昆陽站至南港站自97年12月25日
B33: 中和線、板橋線、南港線、 | E33: 開始營運。
B34: 小南門線、土城線
A35: 98年底 | B35: 文湖線、淡水線、新店線、 | C35: 90.5 | D35: 82 | E35: 內湖線中山國中站至南港展覽館站自
B36: 中和線、板橋線、南港線、 | E36: 98年7月4日開始營運。木柵線及內湖
B37: 小南門線、土城線 | E37: 線自98年10月8日起合併更名為文山內
E38: 湖線，簡稱文湖線。
A39: 99年底 | B39: 文湖線、淡水線、新店線、 | C39: 100.8 | D39: 93 | E39: 蘆洲線蘆洲站至忠孝新生站，自99年
B40: 中和線、板橋線、南港線、 | E40: 11月3日開始營運。
B41: 小南門線、土城線、蘆洲線
A42: 100年底 | B42: 文湖線、淡水線、新店線、 | C42: 101.9 | D42: 94 | E42: 南港線東延至南港展覽館站，自100年
B43: 中和線、板橋線、南港線、 | E43: 2月27日開始營運。
B44: 小南門線、土城線、蘆洲線
A45: 說明：94年底起依據新修訂之車站標準計算站數，捷運臺北車站及忠孝復興站兩大轉乘站以2站計算。

Sheet 表10
A1: 表10 高雄捷運公司營運路線、里程及車站數
A2: 民國 100 年底
A3: 路 線 名 稱 | B3: 路線里程 | C3: 車站數 | D3: 備 註
B4: (公里) | C4: (個)
A5: 總 計 | B5: 41.4 | C5: 37
A6: 紅 線 | B6: 28.2 | C6: 23 | D6: 紅線 (小港站至橋頭火車站) 自97年4月7日起正式營
D7: 運，營運車站包含小港、高雄國際機場、草衙、前
D8: 鎮高中、凱旋、獅甲、三多商圈、中央公園、美麗
D9: 島、高雄車站、後驛、凹子底、巨蛋、生態園區、
D10: 左營、世運、油廠國小、楠梓加工區、後勁、都會
D11: 公園、青埔、橋頭糖廠及橋頭火車站 (R3至R23) 等
D12: 23個車站。
A14: 橘 線 | B14: 13.1 | C14: 14 | D14: 橘線 (西子灣站至大寮站) 自97年 9月21日起正式營
D15: 運，營運車站包含西子灣、鹽埕埔、市議會、美麗
D16: 島、信義國小、文化中心、五塊厝、技擊館、衛武
D17: 營、鳳山西站、鳳山、大東、鳳山國中、大寮 (O1
D18: 至OT1) 等14個車站。

Sheet 表11
E1: 表 11 臺 灣 地 區 道 路 里 程
I2: 單位：公里
A3: 年 底 別 | D3: 公 | G3: 路 | I3: 市區道路
A4: 及 | B4: 總 計 | C4: 計 | D4: 國 道 | E4: 省 道 | F4: 縣 道 | G4: 鄉 道 | H4: 專用公路
A5: 地 區 別
A6: 95年底 | B6: 38276 | C6: 21223 | D6: 954 | E6: 4843 | F6: 3358 | G6: 11654 | H6: 414 | I6: 17053
A7: 96年底 | B7: 38505 | C7: 21382 | D7: 954 | E7: 5000 | F7: 3360 | G7: 11654 | H7: 414 | I7: 17123
A8: 97年底 | B8: 39294 | C8: 21471 | D8: 989 | E8: 5024 | F8: 3484 | G8: 11560 | H8: 414 | I8: 17823
A9: 98年底 | B9: 39755 | C9: 21760 | D9: 989 | E9: 5092 | F9: 3518 | G9: 11765 | H9: 396 | I9: 17995
A10: 99年底 | B10: 40259 | C10: 21800 | D10: 989 | E10: 5099 | F10: 3551 | G10: 11765 | H10: 396 | I10: 18459
A11: 100年底 | B11: 40901 | C11: 15716 | D11: 989 | E11: 3396 | F11: 2657 | G11: 8448 | H11: 226 | I11: 25185
A12: 新北市 | B12: 2879 | C12: 81 | D12: 81 | E12: 0 | F12: 0 | G12: 0 | H12: 0 | I12: 2798
A13: 臺北市 | B13: 1264 | C13: 30 | D13: 30 | E13: 0 | F13: 0 | G13: 0 | H13: 0 | I13: 1234
A14: 臺中市 | B14: 4213 | C14: 94 | D14: 94 | E14: 0 | F14: 0 | G14: 0 | H14: 0 | I14: 4119
A15: 臺南市 | B15: 4758 | C15: 140 | D15: 140 | E15: 0 | F15: 0 | G15: 0 | H15: 0 | I15: 4618
A16: 高雄市 | B16: 3936 | C16: 84 | D16: 84 | E16: 0 | F16: 0 | G16: 0 | H16: 0 | I16: 3852
A17: 臺灣省 | B17: 23851 | C17: 15287 | D17: 560 | E17: 3396 | F17: 2657 | G17: 8448 | H17: 226 | I17: 8564
A18: 宜蘭縣 | B18: 1314 | C18: 830 | D18: 29 | E18: 337 | F18: 57 | G18: 383 | H18: 24 | I18: 484
A19: 桃園縣 | B19: 2750 | C19: 1214 | D19: 73 | E19: 314 | F19: 206 | G19: 613 | H19: 8 | I19: 1536
A20: 新竹縣 | B20: 1275 | C20: 874 | D20: 50 | E20: 104 | F20: 163 | G20: 549 | H20: 8 | I20: 401
A21: 苗栗縣 | B21: 1670 | C21: 1338 | D21: 96 | E21: 266 | F21: 196 | G21: 756 | H21: 24 | I21: 332
A22: 彰化縣 | B22: 2292 | C22: 1663 | D22: 59 | E22: 218 | F22: 390 | G22: 996 | H22: 0 | I22: 629
A23: 南投縣 | B23: 2172 | C23: 1565 | D23: 67 | E23: 419 | F23: 199 | G23: 790 | H23: 90 | I23: 607
A24: 雲林縣 | B24: 2453 | C24: 1876 | D24: 48 | E24: 224 | F24: 389 | G24: 1215 | H24: 0 | I24: 577
A25: 嘉義縣 | B25: 2278 | C25: 1763 | D25: 47 | E25: 307 | F25: 456 | G25: 941 | H25: 12 | I25: 515
A26: 屏東縣 | B26: 2852 | C26: 1879 | D26: 51 | E26: 338 | F26: 290 | G26: 1194 | H26: 6 | I26: 973
A27: 臺東縣 | B27: 1311 | C27: 929 | D27: 0 | E27: 348 | F27: 66 | G27: 470 | H27: 45 | I27: 382
A28: 花蓮縣 | B28: 1589 | C28: 957 | D28: 0 | E28: 415 | F28: 109 | G28: 424 | H28: 9 | I28: 632
A29: 澎湖縣 | B29: 268 | C29: 195 | D29: 0 | E29: 0 | F29: 78 | G29: 117 | H29: 0 | I29: 73
A30: 基隆市 | B30: 617 | C30: 73 | D30: 17 | E30: 50 | F30: 6 | G30: 0 | H30: 0 | I30: 544
A31: 新竹市 | B31: 527 | C31: 85 | D31: 17 | E31: 39 | F31: 29 | G31: 0 | H31: 0 | I31: 442
A32: 嘉義市 | B32: 483 | C32: 46 | D32: 6 | E32: 17 | F32: 23 | G32: 0 | H32: 0 | I32: 437
A34: 說明 : 市區道路係路面寬度6米以上部分。

Sheet 表12
C1: 表12 臺 灣 地 區 道 路 面 積 | G1: 表 12 臺 灣 地 區 道 路 面 積 ( 續 )
E2: 單位：千平方公尺 | I2: 單位：千平方公尺
A3: 年 底 別 | D3: 公 路 | G3: 公 路
A4: 及 | B4: 總 計 | C4: 計 | D4: 國 道 | E4: 省 道 | F4: 縣 道 | G4: 鄉 道 | H4: 專 用 公 路 | I4: 市 區 道 路
A5: 地 區 別
A6: 95年底 | B6: 409928 | C6: 193045 | D6: 25999 | E6: 73791 | F6: 31766 | G6: 59873 | H6: 1616 | I6: 216883
A7: 96年底 | B7: 416836 | C7: 196562 | D7: 25999 | E7: 76815 | F7: 32244 | G7: 59888 | H7: 1616 | I7: 220274
A8: 97年底 | B8: 425159 | C8: 199657 | D8: 27101 | E8: 78136 | F8: 36616 | G8: 56188 | H8: 1616 | I8: 225502
A9: 98年底 | B9: 471646 | C9: 244453 | D9: 27605 | E9: 89010 | F9: 42705 | G9: 83601 | H9: 1532 | I9: 227193
A10: 99年底 | B10: 476525 | C10: 245332 | D10: 27605 | E10: 89046 | F10: 43548 | G10: 83601 | H10: 1532 | I10: 231193
A11: 100年底 | B11: 481886 | C11: 173155 | D11: 27605 | E11: 57001 | F11: 30178 | G11: 57811 | H11: 560 | I11: 308731
A12: 新北市 | B12: 34004 | C12: 2200 | D12: 2200 | E12: 0 | F12: 0 | G12: 0 | H12: 0 | I12: 31804
A13: 臺北市 | B13: 19941 | C13: 1316 | D13: 1316 | E13: 0 | F13: 0 | G13: 0 | H13: 0 | I13: 18625
A14: 臺中市 | B14: 60036 | C14: 2646 | D14: 2646 | E14: 0 | F14: 0 | G14: 0 | H14: 0 | I14: 57390
A15: 臺南市 | B15: 60612 | C15: 2916 | D15: 2916 | E15: 0 | F15: 0 | G15: 0 | H15: 0 | I15: 57696
A16: 高雄市 | B16: 50373 | C16: 2556 | D16: 2556 | E16: 0 | F16: 0 | G16: 0 | H16: 0 | I16: 47817
A17: 臺灣省 | B17: 256920 | C17: 161521 | D17: 15971 | E17: 57001 | F17: 30178 | G17: 57811 | H17: 560 | I17: 95399
A18: 宜蘭縣 | B18: 15604 | C18: 9320 | D18: 756 | E18: 4615 | F18: 729 | G18: 3051 | H18: 169 | I18: 6284
A19: 桃園縣 | B19: 29324 | C19: 16355 | D19: 2460 | E19: 5836 | F19: 3440 | G19: 4563 | H19: 56 | I19: 12969
A20: 新竹縣 | B20: 13613 | C20: 9941 | D20: 1707 | E20: 2338 | F20: 1845 | G20: 4024 | H20: 27 | I20: 3672
A21: 苗栗縣 | B21: 16457 | C21: 12281 | D21: 2553 | E21: 5683 | F21: 1771 | G21: 2190 | H21: 84 | I21: 4176
A22: 彰化縣 | B22: 25856 | C22: 17731 | D22: 1264 | E22: 4783 | F22: 4563 | G22: 7121 | H22: 0 | I22: 8125
A23: 南投縣 | B23: 19528 | C23: 13080 | D23: 1992 | E23: 4893 | F23: 1847 | G23: 4328 | H23: 20 | I23: 6448
A24: 雲林縣 | B24: 29511 | C24: 22404 | D24: 1347 | E24: 5403 | F24: 5001 | G24: 10653 | H24: 0 | I24: 7107
A25: 嘉義縣 | B25: 22975 | C25: 17261 | D25: 1410 | E25: 4695 | F25: 4954 | G25: 6138 | H25: 64 | I25: 5714
A26: 屏東縣 | B26: 31302 | C26: 18572 | D26: 1123 | E26: 5836 | F26: 2599 | G26: 8974 | H26: 40 | I26: 12730
A27: 臺東縣 | B27: 12586 | C27: 8402 | D27: 0 | E27: 4448 | F27: 623 | G27: 3258 | H27: 73 | I27: 4184
A28: 花蓮縣 | B28: 16646 | C28: 9537 | D28: 0 | E28: 5669 | F28: 1045 | G28: 2796 | H28: 27 | I28: 7109
A29: 澎湖縣 | B29: 2555 | C29: 1807 | D29: 0 | E29: 0 | F29: 1092 | G29: 715 | H29: 0 | I29: 748
A30: 基隆市 | B30: 6686 | C30: 1822 | D30: 795 | E30: 935 | F30: 92 | G30: 0 | H30: 0 | I30: 4864
A31: 新竹市 | B31: 4814 | C31: 1798 | D31: 401 | E31: 1109 | F31: 288 | G31: 0 | H31: 0 | I31: 3016
A32: 嘉義市 | B32: 9463 | C32: 1210 | D32: 163 | E32: 758 | F32: 289 | G32: 0 | H32: 0 | I32: 8253
A34: 說明：98年底資料因執行公路總清查，致較往年差異大。

Sheet 表13
C1: 表 13 臺灣地區道路橋梁概況 | K1: 表 13 臺灣地區道路橋梁概況 ( 續 )
A2: 年 底 別 | B2: 公 路 橋 梁 | J2: 公 路 橋 梁 | N2: 新北市區 | O2: 臺北市區 | P2: 臺中市區 | Q2: 臺南市區 | R2: 高雄市區
B3: 合 | C3: 計 | D3: 國 | E3: 道 | F3: 省 | G3: 道 | H3: 縣 | I3: 道 | J3: 鄉 | K3: 道 | L3: 專 用 公 路 | N3: 道路橋梁 | O3: 道路橋梁 | P3: 道路橋梁 | Q3: 道路橋梁 | R3: 道路橋梁
B4: 座 數 | C4: 長 度 | D4: 座 數 | E4: 長 度 | F4: 座 數 | G4: 長 度 | H4: 座 數 | I4: 長 度 | J4: 座 數 | K4: 長 度 | L4: 座 數 | M4: 長 度 | N4: 座 數 | O4: 座 數 | P4: 座 數 | Q4: 座 數 | R4: 座 數
B5: (座) | C5: (公尺) | D5: (座) | E5: (公尺) | F5: (座) | G5: (公尺) | H5: (座) | I5: (公尺) | J5: (座) | K5: (公尺) | L5: (座) | M5: (公尺) | N5: (座) | O5: (座) | P5: (座) | Q5: (座) | R5: (座)
A6: 91年底 | B6: =SUM(D6,F6, H6, J6,L6 ) -> 11356 | C6: =SUM(E6,G6,I6,K6,M6) -> 591301 | D6: 1094 | E6: 268788 | F6: 2743 | G6: 162294 | H6: 1897 | I6: 61432 | J6: 5535 | K6: 96608 | L6: 87 | M6: 2179 | N6: － | O6: 231 | P6: － | Q6: － | R6: 100
A7: 92年底 | B7: =SUM(D7,F7, H7, J7,L7 ) -> 11506 | C7: =SUM(E7,G7,I7,K7,M7) -> 688273 | D7: 1203 | E7: 357378 | F7: 2769 | G7: 168972 | H7: 1912 | I7: 63136 | J7: 5535 | K7: 96608 | L7: 87 | M7: 2179 | N7: － | O7: 231 | P7: － | Q7: － | R7: 92
A8: 93年底 | B8: 11737 | C8: 763232 | D8: 1321 | E8: 415381 | F8: 2916 | G8: 187670 | H8: 1864 | I8: 60965 | J8: 5549 | K8: 97037 | L8: 87 | M8: 2179 | N8: － | O8: 233 | P8: － | Q8: － | R8: 92
A9: 94年底 | B9: 11799 | C9: 779530 | D9: 1355 | E9: 429292 | F9: 2930 | G9: 192031 | H9: 1869 | I9: 58871 | J9: 5558 | K9: 97157 | L9: 87 | M9: 2179 | N9: － | O9: 245 | P9: － | Q9: － | R9: 93
A10: 95年底 | B10: 11862 | C10: 784972 | D10: 1371 | E10: 420119 | F10: 2976 | G10: 203922 | H10: 1870 | I10: 61595 | J10: 5558 | K10: 97157 | L10: 87 | M10: 2179 | N10: － | O10: 250 | P10: － | Q10: － | R10: 94
A11: 96年底 | B11: 11918 | C11: 799789 | D11: 1378 | E11: 422683 | F11: 3016 | G11: 215125 | H11: 1879 | I11: 62645 | J11: 5558 | K11: 97157 | L11: 87 | M11: 2179 | N11: － | O11: 253 | P11: － | Q11: － | R11: 93
A12: 97年底 | B12: 11925 | C12: 824123 | D12: 1395 | E12: 437313 | F12: 3050 | G12: 223199 | H12: 1924 | I12: 66914 | J12: 5469 | K12: 94518 | L12: 87 | M12: 2179 | N12: － | O12: 253 | P12: － | Q12: － | R12: 95
A13: 98年底 | B13: 11017 | C13: 910307 | D13: 1421 | E13: 457474 | F13: 2643 | G13: 286665 | H13: 1559 | I13: 72647 | J13: 5307 | K13: 91343 | L13: 87 | M13: 2178 | N13: － | O13: 254 | P13: － | Q13: － | R13: 91
A14: 99年底 | B14: 11067 | C14: 934573 | D14: 1421 | E14: 457474 | F14: 2696 | G14: 311000 | H14: 1559 | I14: 72599 | J14: 5307 | K14: 91343 | L14: 84 | M14: 2157 | N14: － | O14: 254 | P14: － | Q14: － | R14: 92
A15: 100年底 | B15: =D15+F15+H15+J15 -> 11010 | C15: =E15+G15+I15+K15 -> 1475672.877 | D15: 2189 | E15: 759109.63 | F15: 2593 | G15: 488210.642 | H15: 1639 | I15: 91468.965 | J15: 4589 | K15: 136883.64 | L15: － | M15: － | N15: 1031 | O15: 266 | P15: 1956 | Q15: 1314 | R15: 1222
A16: 說明：1. 99年(含)以前公路橋梁係指有橋台、橋墩且跨距在3公尺以上之橋梁；100年起為跨距6公尺以上之
A17: 橋梁。
A18: 2.100年起配合縣市改制直轄市，相關統計資料陳示亦作調整。
A19: 3.專用公路橋梁係縣(市)政府主管，非屬公路總局業管權責，自100年起不納入公路橋梁統計。
A20: 資料來源：99年(含)以前為公路總局、國道高速公路局、臺北市及高雄市政府工務局。
B21: 100年起為交通部運輸研究所「臺灣地區橋梁管理資訊系統」。

Sheet 表14
A1: 表 14 臺灣地區省道路線里程、橋梁及隧道 ( 續完 )
C2: 民國100 年底
C3: 路 線 | D3: 橋 | E3: 梁 | F3: 隧 | G3: 道
A4: 路 線 別 | C4: 里 程 | D4: 座 數 | E4: 長 度 | F4: 座 數 | G4: 長 度
C5: (公尺) | D5: (座) | E5: (公尺) | F5: (座) | G5: (公尺)
A6: 總 | B6: 計 | C6: =SUM(C7:C100) -> 5126168 | D6: =SUM(D7:D100) -> 2708 | E6: 312242 | F6: =SUM(F7:F100) -> 213 | G6: 59871
A7: 1 | B7: 臺北－楓港 | C7: 460600 | D7: 294 | E7: 24956 | F7: 2 | G7: 474
A8: 1甲 | B8: 臺北－桃園 | C8: 25645 | D8: 10 | E8: 1722 | F8: － | G8: －
A9: 1乙 | B9: 大雅－王田 | C9: 21800 | D9: 18 | E9: 402 | F9: － | G9: －
A10: 1丙 | B10: 大肚橋－莿桐腳 | C10: 7977 | D10: 4 | E10: 389 | F10: 2 | G10: 142
A11: 1丁 | B11: 莿桐－斗南 | C11: 14008 | D11: 9 | E11: 552 | F11: － | G11: －
A12: 1戊 | B12: 高雄－後庄 | C12: 8528 | D12: 3 | E12: 46 | F12: － | G12: －
A13: 1己 | B13: 竹南－蘆竹湳 | C13: 4186 | D13: 3 | E13: 255 | F13: － | G13: －
A14: 2 | B14: 關渡－蘇澳 | C14: 169521 | D14: 112 | E14: 5158 | F14: 8 | G14: 4935
A15: 2甲 | B15: 金山－臺北 | C15: 37985 | D15: 8 | E15: 224 | F15: － | G15: －
A16: 2乙 | B16: 臺北－林子 | C16: 21658 | D16: 11 | E16: 706 | F16: － | G16: －
A17: 2丙 | B17: 暖暖－大溪 | C17: 16708 | D17: 22 | E17: 1987 | F17: 1 | G17: 1339
A18: 2丁 | B18: 八堵－瑞濱 | C18: 12689 | D18: 8 | E18: 225 | F18: 2 | G18: 566
A19: 2戊 | B19: 清水－蘇澳 | C19: 9305 | D19: 1 | E19: 11 | F19: － | G19: －
A20: 2己 | B20: 仙洞－大武崙 | C20: 3980 | D20: － | E20: － | F20: － | G20: －
A21: 2庚 | B21: 頭城－二城 | C21: 3736 | D21: 5 | E21: 490 | F21: － | G21: －
A22: 3 | B22: 臺北－屏東 | C22: 435832 | D22: 294 | E22: 19647 | F22: 5 | G22: 991
A23: 3甲 | B23: 草屯－五塊厝 | C23: 11695 | D23: 11 | E23: 369 | F23: － | G23: －
A24: 3乙 | B24: 員樹林－深窩 | C24: 12078 | D24: 7 | E24: 66 | F24: － | G24: －
A25: 3丙 | B25: 水底寮－林尾 | C25: 7133 | D25: 4 | E25: 441 | F25: － | G25: －
A26: 4 | B26: 竹圍－石門 | C26: 36706 | D26: 16 | E26: 1610 | F26: － | G26: －
A27: 5 | B27: 臺北－基隆 | C27: 28921 | D27: 23 | E27: 2640 | F27: 2 | G27: 269
A28: 5甲 | B28: 樟樹灣－六堵 | C28: 8631 | D28: 4 | E28: 108 | F28: － | G28: －
A29: 5乙 | B29: 汐止交流道－汐止陸橋 | C29: 2085 | D29: － | E29: － | F29: － | G29: －
A30: 6 | B30: 龍港－汶水 | C30: 31448 | D30: 12 | E30: 706 | F30: 7 | G30: 578
A31: 7 | B31: 大溪－公館 | C31: 129519 | D31: 46 | E31: 2640 | F31: 6 | G31: 1113
A32: 7甲 | B32: 棲蘭－梨山 | C32: 74217 | D32: 28 | E32: 1767 | F32: － | G32: －
A33: 7乙 | B33: 大埔－三民 | C33: 14206 | D33: 10 | E33: 143 | F33: － | G33: －
A34: 7丙 | B34: 牛鬥－利澤簡 | C34: 31510 | D34: 11 | E34: 1705 | F34: － | G34: －
A35: 8 | B35: 東勢－新城 | C35: 189994 | D35: 52 | E35: 1768 | F35: 66 | G35: 7700
A36: 8甲 | B36: 霸新－德基 | C36: － | D36: － | E36: －
A37: 9 | B37: 臺北－楓港 | C37: 472558 | D37: 207 | E37: 20404 | F37: 22 | G37: 8725
A38: 9甲 | B38: 新店－宜蘭 | C38: 36043 | D38: 16 | E38: 1510 | F38: 1 | G38: 74
A39: 9乙 | B39: 檳榔－大南 | C39: 5182 | D39: 1 | E39: 10 | F39: － | G39: －
A40: 9丙 | B40: 花蓮－壽豐 | C40: 22820 | D40: 7 | E40: 472 | F40: － | G40: －
A41: 10 | B41: 臺中港－豐原 | C41: 21119 | D41: 4 | E41: 53 | F41: － | G41: －
A42: 10乙 | B42: 清水－西勢寮 | C42: 5271 | D42: 1 | E42: 8 | F42: － | G42: －
A43: 11 | B43: 花蓮－知本 | C43: 178229 | D43: 147 | E43: 9786 | F43: 4 | G43: 556
A44: 11甲 | B44: 光復－豐濱 | C44: 19291 | D44: 11 | E44: 526 | F44: － | G44: －
A45: 11乙 | B45: 富岡－卑南 | C45: 7405 | D45: 4 | E45: 536 | F45: － | G45: －
A46: 11丙 | B46: 光華－溪口 | C46: 18290 | D46: 5 | E46: 2384 | F46: － | G46: －
A47: 12 | B47: 臺中港－臺中 | C47: 23193 | D47: 15 | E47: 430 | F47: － | G47: －
A48: 13 | B48: 內湖－豐原 | C48: 65798 | D48: 34 | E48: 5354 | F48: － | G48: －
A49: 13甲 | B49: 竹南－苗栗 | C49: 12735 | D49: 5 | E49: 454 | F49: 4 | G49: 1264
A50: 14 | B50: 彰化－廬山 | C50: 99016 | D50: 73 | E50: 3696 | F50: 16 | G50: 2762
A51: 14甲 | B51: 霧社－大禹嶺 | C51: 41596 | D51: － | E51: － | F51: － | G51: －
A52: 14乙 | B52: 芬園－五塊厝 | C52: 16899 | D52: 10 | E52: 520 | F52: － | G52: －
A53: 14丙 | B53: 三村－外快官 | C53: 2783 | D53: 3 | E53: 34 | F53: － | G53: －
A54: 14丁 | B54: 芬園－苦苓腳 | C54: 10461 | D54: 11 | E54: 110 | F54: － | G54: －
A55: 15 | B55: 關渡－南寮 | C55: 83951 | D55: 54 | E55: 5550 | F55: 1 | G55: 2275
A56: 15甲 | B56: 竹圍－沙崙 | C56: 1635 | D56: 1 | E56: 25 | F56: － | G56: －
A57: 16 | B57: 名間－鳳林 | C57: 42570 | D57: 20 | E57: 1372 | F57: 4 | G57: 1431
A58: 17 | B58: 甲南－水底寮 | C58: 274129 | D58: 146 | E58: 18548 | F58: － | G58: －
A59: 17甲 | B59: 安南－湖內橋 | C59: 26851 | D59: 9 | E59: 642 | F59: － | G59: －
A60: 17乙 | B60: 土城子－溪心寮 | C60: 5918 | D60: 6 | E60: 379 | F60: － | G60: －
A61: 18 | B61: 太保－塔塔加 | C61: 109316 | D61: 21 | E61: 1641 | F61: 5 | G61: 763
A62: 19 | B62: 彰化－臺南 | C62: 140336 | D62: 72 | E62: 7277 | F62: － | G62: －
A63: 19甲 | B63: 鹽水－赤崁 | C63: 76036 | D63: 34 | E63: 2533 | F63: － | G63: －
A64: 20 | B64: 臺南－德高 | C64: 203181 | D64: 96 | E64: 3838 | F64: 20 | G64: 4454
A65: 20甲 | B65: 初來－池上 | C65: 5714 | D65: 1 | E65: 856 | F65: － | G65: －
A66: 20乙 | B66: 左鎮－南化 | C66: 8058 | D66: 5 | E66: 238 | F66: － | G66: －
A67: 21 | B67: 天冷－林園 | C67: 248531 | D67: 153 | E67: 9009 | F67: 11 | G67: 2730
A68: 21甲 | B68: 日月潭－頭社 | C68: 20815 | D68: － | E68: － | F68: 2 | G68: 157
A69: 22 | B69: 楠梓－高樹 | C69: 33611 | D69: 20 | E69: 5774 | F69: － | G69: －
A70: 23 | B70: 富里－東河 | C70: 45224 | D70: 30 | E70: 852 | F70: 2 | G70: 48
A71: 24 | B71: 屏東－阿禮 | C71: 48690 | D71: 16 | E71: 445 | F71: 1 | G71: 86
A72: 25 | B72: 鳳山－林園 | C72: 17045 | D72: 13 | E72: 393 | F72: － | G72: －
A73: 26 | B73: 楓港－達仁 | C73: 66235 | D73: 43 | E73: 759 | F73: － | G73: －
A74: 27 | B74: 荖濃－烏龍 | C74: 79241 | D74: 41 | E74: 2274 | F74: － | G74: －
A75: 27甲 | B75: 六龜－新威 | C75: 12079 | D75: 11 | E75: 437 | F75: － | G75: －
A76: 28 | B76: 湖內橋－茂林 | C76: 48389 | D76: 40 | E76: 1766 | F76: － | G76: －
A77: 30 | B77: 山風－寧埔 | C77: 30316 | D77: 9 | E77: 907 | F77: 1 | G77: 2660
A78: 31 | B78: 蘆竹－新屋 | C78: 17876 | D78: 6 | E78: 312 | F78: － | G78: －
A79: 37 | B79: 新港－鹿草 | C79: 14453 | D79: 2 | E79: 670 | F79: － | G79: －
A80: 39 | B80: 新市－阿蓮 | C80: 18849 | D80: 5 | E80: 2175 | F80: － | G80: －
A81: 61 | B81: 八里－灣裡 | C81: 211013 | D81: 93 | E81: 41852 | F81: － | G81: －
A82: 61甲 | B82: 臺北港－八里 | C82: 2326 | D82: － | E82: － | F82: － | G82: －
A83: 61乙 | B83: 彰濱－和美 | C83: 6513 | D83: － | E83: － | F83: － | G83: －
A84: 62 | B84: 萬里－瑞濱 | C84: 18821 | D84: 11 | E84: 2476 | F84: 10 | G84: 2552
A85: 63 | B85: 臺中－草屯 | C85: 18980 | D85: 11 | E85: 9962 | F85: － | G85: －
A86: 63甲 | B86: 芬園－草屯 | C86: 2173 | D86: 1 | E86: 42 | F86: － | G86: －
A87: 64 | B87: 八里－新店 | C87: 28390 | D87: 6 | E87: 4745 | F87: － | G87: －
A88: 65 | B88: 五股－土城 | C88: 8760 | D88: 1 | E88: 3
A89: 66 | B89: 觀音－大溪 | C89: 27200 | D89: 10 | E89: 12762 | F89: － | G89: －
A90: 68 | B90: 南寮－竹東 | C90: 23541 | D90: 4 | E90: 3269 | F90: － | G90: －
A91: 68甲 | B91: 四重埔－竹東 | C91: 987 | D91: － | E91: － | F91: － | G91: －
A92: 72 | B92: 後龍－汶水 | C92: 28388 | D92: 32 | E92: 15786 | F92: 4 | G92: 705
A93: 74 | B93: 快官－霧峰 | C93: 30805 | D93: 3 | E93: 12888 | F93: － | G93: －
A94: 74甲 | B94: 快官－花壇 | C94: 10259 | D94: 12 | E94: 2756 | F94: － | G94: －
A95: 76 | B95: 漢寶－草屯 | C95: 21752 | D95: － | E95: － | F95: 2 | G95: 9863
A96: 78 | B96: 臺西－古坑 | C96: 43007 | D96: 58 | E96: 9483 | F96: － | G96: －
A97: 82 | B97: 東石－嘉義 | C97: 19074 | D97: 6 | E97: 5280 | F97: － | G97: －
A98: 84 | B98: 北門－玉井 | C98: 15048 | D98: 18 | E98: 2301 | F98: 2 | G98: 662
A99: 86 | B99: 臺南－關廟 | C99: 16709 | D99: 4 | E99: 320 | F99: － | G99: －
A100: 88 | B100: 高雄－潮州 | C100: 22383 | D100: 4 | E100: 2629 | F100: － | G100: －

Sheet 表15
A1: 表 15 臺灣地區高速公路國道路線里程、橋梁、隧道、 收費站、交流道及服務區
A2: 民國100 年底
G3: 收 | H3: 交 | I3: 服
B4: 路 線 | C4: 橋 | D4: 梁 | E4: 隧 | F4: 道 | G4: 費 | H4: 流 | I4: 務
A5: 路 線 別 | B5: 里 程 | G5: 站 | H5: 道 | I5: 區
B6: (公 里) | C6: 座 數 | D6: 長 度 | E6: 座 數 | F6: 長 度 | G6: (處) | H6: (處) | I6: (處)
C7: (座) | D7: (公 尺) | E7: (座) | F7: (公尺)
A8: 總 計 | B8: =SUM(B9:B17) -> 989 | C8: 1421 | D8: 457474 | E8: 33 | F8: 42220 | G8: 23 | H8: 154 | I8: 14
A9: 國道1 | B9: 373 | C9: 469 | D9: 89149 | E9: 2 | F9: 955 | G9: 11 | H9: 67 | I9: 6
A10: 國道2 | B10: 20 | C10: 34 | D10: 11131 | E10: － | F10: － | G10: － | H10: 4 | I10: －
A11: 國道3 | B11: 432 | C11: 710 | D11: 237805 | E11: 21 | F11: 15892 | G11: 11 | H11: 64 | I11: 7
A12: 國道3甲 | B12: 6 | C12: 12 | D12: 2082 | E12: 2 | F12: 997 | G12: － | H12: 1 | I12: －
A13: 國道4 | B13: 17 | C13: 23 | D13: 17610 | E13: － | F13: － | G13: － | H13: 2 | I13: －
A14: 國道5 | B14: 54 | C14: 59 | D14: 35194 | E14: 5 | F14: 20127 | G14: 1 | H14: 6 | I14: 1
A15: 國道6 | B15: 38 | C15: 38 | D15: 32746 | E15: 3 | F15: 4249 | G15: － | H15: 5 | I15: －
A16: 國道8 | B16: 15 | C16: 29 | D16: 12993 | E16: － | F16: － | G16: － | H16: 2 | I16: －
A17: 國道10 | B17: 34 | C17: 47 | D17: 18764 | E17: － | F17: － | G17: － | H17: 3 | I17: －
A18: 說明：「國道1」係指中山高速公路 ( 基隆至高雄 )
A19: 「國道2」係指桃園環線機場支線 ( 臺灣桃園機場至鶯歌系統交流道 )
A20: 「國道3」係指福爾摩沙高速公路 ( 基金交流道至林邊 )
A21: 「國道3甲」係指臺北聯絡線 (臺北至深坑 )
A22: 「國道4」係指臺中環線 ( 清水至豐原 )
A23: 「國道5」係指蔣渭水高速公路(北宜高速公路) ( 南港系統交流道至蘇澳 )
A24: 「國道6」係指國道3號霧峰系統交流道至埔里
A25: 「國道8」係指臺南環線 ( 臺南至新化 )
A26: 「國道10」係指高雄環線( 左營至旗山 )

Sheet 表16
A1: 表16 臺灣地區汽車運輸業家數
H2: 單位：家
A3: 年 底 別 | B3: 總 計 | C3: 汽 車 | D3: 遊覽車 | E3: 計程車 | F3: 小客車 | G3: 貨 運 業 | H3: 小貨車
C4: 客運業 | D4: 客運業 | E4: 客運業 | F4: 租賃業 | H4: 租賃業
A5: 87 年底 | B5: =SUM(C5:H5) -> 55600 | C5: 72 | D5: 791 | E5: 48353 | F5: 1128 | G5: 5256 | H5: －
A6: 88 年底 | B6: 55158 | C6: 79 | D6: 876 | E6: 47473 | F6: 1125 | G6: 5605 | H6: －
A7: 89 年底 | B7: 54656 | C7: 82 | D7: 883 | E7: 46837 | F7: 1113 | G7: 5741 | H7: －
A8: 90 年底 | B8: 53591 | C8: 87 | D8: 886 | E8: 45736 | F8: 1104 | G8: 5778 | H8: －
A9: 91 年底 | B9: 52366 | C9: 88 | D9: 891 | E9: 44477 | F9: 1103 | G9: 5807 | H9: －
A10: 92 年底 | B10: 51257 | C10: 87 | D10: 898 | E10: 43399 | F10: 1112 | G10: 5761 | H10: －
A11: 93 年底 | B11: 49885 | C11: 88 | D11: 906 | E11: 41901 | F11: 1136 | G11: 5810 | H11: 44
A12: 94 年底 | B12: 49734 | C12: 88 | D12: 920 | E12: 41618 | F12: 1171 | G12: 5858 | H12: 79
A13: 95 年底 | B13: 48932 | C13: 89 | D13: 939 | E13: 40726 | F13: 1206 | G13: 5888 | H13: 84
A14: 96 年底 | B14: 46754 | C14: 93 | D14: 925 | E14: 38579 | F14: 1232 | G14: 5833 | H14: 92
A15: 97 年底 | B15: =SUM(C15:H15) -> 46107 | C15: 93 | D15: 906 | E15: 38018 | F15: 1221 | G15: 5772 | H15: 97
A16: 98 年底 | B16: =SUM(C16:H16) -> 45228 | C16: 93 | D16: 888 | E16: 37224 | F16: 1227 | G16: 5695 | H16: 101
A17: 99 年底 | B17: 42528 | C17: 95 | D17: 902 | E17: 34522 | F17: 1223 | G17: 5683 | H17: 103
A18: 100 年底 | B18: 41922 | C18: 90 | D18: 903 | E18: 34016 | F18: 1231 | G18: 5576 | H18: 106
A19: 說明：1.汽車客運業係指「公路汽車客運業」及「市區汽車客運業」。
A20: 2.貨運業係指「汽車貨運業」、「路線貨運業」及「貨櫃貨運業」。
A21: 3.小貨車租賃業自91年2月6日開放申請，資料自93年起開始統計。

Sheet 表17
A1: 表17 臺閩地區機動車輛登記數 | K1: 表 17 臺閩地區機動車輛登記數 ( 續 1 ) | N1: 表 17 臺閩地區機動車輛登記數 ( 續完 )
D2: 民國 100 年底 | H2: 單位：輛 | K2: 民國 100 年底 | N2: 單位：輛 | P2: 民國 100 年底 | R2: 單位：輛
A3: 車種別 | B3: 總 計 | C3: 大 | D3: 客 | E3: 車 | F3: 大 | G3: 貨 | H3: 車 | I3: 小 | J3: 客 | K3: 車 | L3: 小 | M3: 貨 | N3: 車 | O3: 特 種 車 | Q3: 機 器 腳 踏 車
A4: 地區別 | C4: 計 | D4: 自 用 | E4: 營 業 | F4: 計 | G4: 自 用 | H4: 營 業 | I4: 計 | J4: 自 用 | K4: 營 業 | L4: 計 | M4: 自 用 | N4: 營 業 | P4: 計 | Q4: 重 型 | R4: 輕 型
A5: 臺閩地區 | B5: 22226684 | C5: 29991 | D5: 1863 | E5: 28128 | F5: 164221 | G5: 95003 | H5: 69218 | I5: 5960088 | J5: 5787010 | K5: 173078 | L5: 848732 | M5: 817543 | N5: 31189 | O5: 50050 | P5: 15173602 | Q5: 11572658 | R5: 3600944
A6: 臺灣地區 | B6: 22150801 | C6: 29697 | D6: 1844 | E6: 27853 | F6: 163439 | G6: 94361 | H6: 69078 | I6: 5937337 | J6: 5764985 | K6: 172352 | L6: 845882 | M6: 814716 | N6: 31166 | O6: 49692 | P6: 15124754 | Q6: 11533374 | R6: 3591380
A7: 新北市 | B7: 3284713 | C7: 6247 | D7: 211 | E7: 6036 | F7: 14908 | G7: 7398 | H7: 7510 | I7: 805505 | J7: 781633 | K7: 23872 | L7: 91026 | M7: 86162 | N7: 4864 | O7: 7252 | P7: 2359775 | Q7: 1872242 | R7: 487533
A8: 臺北市 | B8: 1845686 | C8: 7135 | D8: 275 | E8: 6860 | F8: 6292 | G8: 4032 | H8: 2260 | I8: 664044 | J8: 569758 | K8: 94286 | L8: 59623 | M8: 42313 | N8: 17310 | O8: 7014 | P8: 1101578 | Q8: 844872 | R8: 256706
A9: 臺中市 | B9: 2684874 | C9: 2830 | D9: 215 | E9: 2615 | F9: 23971 | G9: 13078 | H9: 10893 | I9: 796970 | J9: 784778 | K9: 12192 | L9: 111476 | M9: 108724 | N9: 2752 | O9: 5225 | P9: 1744402 | Q9: 1352980 | R9: 391422
A10: 臺南市 | B10: 2043342 | C10: 1850 | D10: 97 | E10: 1753 | F10: 12581 | G10: 8247 | H10: 4334 | I10: 498788 | J10: 491360 | K10: 7428 | L10: 77220 | M10: 76237 | N10: 983 | O10: 3754 | P10: 1449149 | Q10: 1063486 | R10: 385663
A11: 高雄市 | B11: 3120201 | C11: 3151 | D11: 213 | E11: 2938 | F11: 25281 | G11: 12132 | H11: 13149 | I11: 687583 | J11: 674382 | K11: 13201 | L11: 94027 | M11: 91947 | N11: 2080 | O11: 5627 | P11: 2304532 | Q11: 1665039 | R11: 639493
A12: 臺灣省 | B12: 9171985 | C12: 8484 | D12: 833 | E12: 7651 | F12: 80406 | G12: 49474 | H12: 30932 | I12: 2484447 | J12: 2463074 | K12: 21373 | L12: 412510 | M12: 409333 | N12: 3177 | O12: 20820 | P12: 6165318 | Q12: 4734755 | R12: 1430563
A13: 宜蘭縣 | B13: 439451 | C13: 246 | D13: 55 | E13: 191 | F13: 4446 | G13: 2322 | H13: 2124 | I13: 115995 | J13: 114891 | K13: 1104 | L13: 18658 | M13: 18576 | N13: 82 | O13: 1101 | P13: 299005 | Q13: 223628 | R13: 75377
A14: 桃園縣 | B14: 1797521 | C14: 2013 | D14: 120 | E14: 1893 | F14: 18214 | G14: 8999 | H14: 9215 | I14: 565673 | J14: 559846 | K14: 5827 | L14: 63627 | M14: 61761 | N14: 1866 | O14: 3909 | P14: 1144085 | Q14: 839395 | R14: 304690
A15: 新竹縣 | B15: 474620 | C15: 365 | D15: 35 | E15: 330 | F15: 4503 | G15: 2168 | H15: 2335 | I15: 162472 | J15: 161669 | K15: 803 | L15: 18718 | M15: 18265 | N15: 453 | O15: 1094 | P15: 287468 | Q15: 238088 | R15: 49380
A16: 苗栗縣 | B16: 562240 | C16: 508 | D16: 95 | E16: 413 | F16: 5240 | G16: 3287 | H16: 1953 | I16: 167151 | J16: 166608 | K16: 543 | L16: 24090 | M16: 24059 | N16: 31 | O16: 1380 | P16: 363871 | Q16: 291044 | R16: 72827
A17: 彰化縣 | B17: 1379344 | C17: 1127 | D17: 72 | E17: 1055 | F17: 12682 | G17: 8997 | H17: 3685 | I17: 360010 | J17: 357348 | K17: 2662 | L17: 70123 | M17: 69843 | N17: 280 | O17: 2672 | P17: 932730 | Q17: 735714 | R17: 197016
A18: 南投縣 | B18: 553064 | C18: 232 | D18: 68 | E18: 164 | F18: 4668 | G18: 3036 | H18: 1632 | I18: 152577 | J18: 152186 | K18: 391 | L18: 32382 | M18: 32378 | N18: 4 | O18: 1365 | P18: 361840 | Q18: 287012 | R18: 74828
A19: 雲林縣 | B19: 739886 | C19: 618 | D19: 70 | E19: 548 | F19: 7822 | G19: 5184 | H19: 2638 | I19: 187544 | J19: 187153 | K19: 391 | L19: 42263 | M19: 42218 | N19: 45 | O19: 1554 | P19: 500085 | Q19: 381027 | R19: 119058
A20: 嘉義縣 | B20: 553606 | C20: 148 | D20: 50 | E20: 98 | F20: 4510 | G20: 4028 | H20: 482 | I20: 139980 | J20: 139692 | K20: 288 | L20: 34054 | M20: 34020 | N20: 34 | O20: 1074 | P20: 373840 | Q20: 282873 | R20: 90967
A21: 屏東縣 | B21: 980197 | C21: 457 | D21: 45 | E21: 412 | F21: 6209 | G21: 4496 | H21: 1713 | I21: 201547 | J21: 200964 | K21: 583 | L21: 46586 | M21: 46583 | N21: 3 | O21: 1816 | P21: 723582 | Q21: 550477 | R21: 173105
A22: 臺東縣 | B22: 252382 | C22: 149 | D22: 24 | E22: 125 | F22: 1689 | G22: 1312 | H22: 377 | I22: 51680 | J22: 51017 | K22: 663 | L22: 14334 | M22: 14332 | N22: 2 | O22: 777 | P22: 183753 | Q22: 143779 | R22: 39974
A23: 花蓮縣 | B23: 357584 | C23: 379 | D23: 86 | E23: 293 | F23: 2583 | G23: 1640 | H23: 943 | I23: 87346 | J23: 85874 | K23: 1472 | L23: 17533 | M23: 17520 | N23: 13 | O23: 1075 | P23: 248668 | Q23: 184595 | R23: 64073
A24: 澎湖縣 | B24: 95587 | C24: 201 | D24: 9 | E24: 192 | F24: 486 | G24: 469 | H24: 17 | I24: 19570 | J24: 19260 | K24: 310 | L24: 3194 | M24: 3193 | N24: 1 | O24: 351 | P24: 71785 | Q24: 55620 | R24: 16165
A25: 基隆市 | B25: 285668 | C25: 443 | D25: 20 | E25: 423 | F25: 2351 | G25: 655 | H25: 1696 | I25: 79782 | J25: 75780 | K25: 4002 | L25: 6143 | M25: 6056 | N25: 87 | O25: 880 | P25: 196069 | Q25: 161381 | R25: 34688
A26: 新竹市 | B26: 409105 | C26: 951 | D26: 46 | E26: 905 | F26: 2486 | G26: 1574 | H26: 912 | I26: 120801 | J26: 118986 | K26: 1815 | L26: 11316 | M26: 11073 | N26: 243 | O26: 1054 | P26: 272497 | Q26: 223741 | R26: 48756
A27: 嘉義市 | B27: 291730 | C27: 647 | D27: 38 | E27: 609 | F27: 2517 | G27: 1307 | H27: 1210 | I27: 72319 | J27: 71800 | K27: 519 | L27: 9489 | M27: 9456 | N27: 33 | O27: 718 | P27: 206040 | Q27: 136381 | R27: 69659
A28: 福建省 | B28: 75883 | C28: 294 | D28: 19 | E28: 275 | F28: 782 | G28: 642 | H28: 140 | I28: 22751 | J28: 22025 | K28: 726 | L28: 2850 | M28: 2827 | N28: 23 | O28: 358 | P28: 48848 | Q28: 39284 | R28: 9564
A29: 金門縣 | B29: 68597 | C29: 252 | D29: 14 | E29: 238 | F29: 627 | G29: 516 | H29: 111 | I29: 20927 | J29: 20325 | K29: 602 | L29: 2578 | M29: 2559 | N29: 19 | O29: 291 | P29: 43922 | Q29: 34763 | R29: 9159
A30: 連江縣 | B30: 7286 | C30: 42 | D30: 5 | E30: 37 | F30: 155 | G30: 126 | H30: 29 | I30: 1824 | J30: 1700 | K30: 124 | L30: 272 | M30: 268 | N30: 4 | O30: 67 | P30: 4926 | Q30: 4521 | R30: 405
A31: 說明：民國100年縣市改制後，臺中市包含原臺中縣；臺南市包含原臺南縣；高雄市包含原
A32: 高雄縣統計資料。

Sheet 表18
A1: 表18 臺閩地區各型汽車－按車齡分
D2: 民國 100 年底 | H2: 單位：輛
A3: 車種 | B3: 總 計 | C3: 大 | D3: 客 | E3: 車 | F3: 大 | G3: 貨 | H3: 車
A4: 車齡 | C4: 計 | D4: 自 用 | E4: 營 業 | F4: 計 | G4: 自 用 | H4: 營 業
A5: 總計 | B5: 7053082 | C5: 29991 | D5: 1863 | E5: 28128 | F5: 164221 | G5: 95003 | H5: 69218
A6: 未滿1年 | B6: 348346 | C6: 2643 | D6: 52 | E6: 2591 | F6: 5577 | G6: 2392 | H6: 3185
A7: 1－未滿3年 | B7: 598342 | C7: 4978 | D7: 150 | E7: 4828 | F7: 7899 | G7: 4552 | H7: 3347
A8: 3－未滿5年 | B8: 547005 | C8: 2893 | D8: 191 | E8: 2702 | F8: 7210 | G8: 4643 | H8: 2567
A9: 5－未滿7年 | B9: 862610 | C9: 4821 | D9: 171 | E9: 4650 | F9: 15474 | G9: 7389 | H9: 8085
A10: 7－未滿10年 | B10: 1242834 | C10: 5761 | D10: 177 | E10: 5584 | F10: 14226 | G10: 6014 | H10: 8212
A11: 10年以上 | B11: 3453945 | C11: 8895 | D11: 1122 | E11: 7773 | F11: 113835 | G11: 70013 | H11: 43822
A13: 表 18 臺閩地區各型汽車－按車齡分 ( 續 )
D14: 民國 100 年底 | H14: 單位：輛
A15: 車種 | B15: 小 | C15: 客 | D15: 車 | E15: 小 | F15: 貨 | G15: 車 | H15: 特 種 車
A16: 車齡 | B16: 計 | C16: 自 用 | D16: 營 業 | E16: 計 | F16: 自 用 | G16: 營 業
A17: 總計 | B17: 5960088 | C17: 5787010 | D17: 173078 | E17: 848732 | F17: 817543 | G17: 31189 | H17: 50050
A18: 未滿1年 | B18: 309408 | C18: 274413 | D18: 34995 | E18: 27810 | F18: 20699 | G18: 7111 | H18: 2908
A19: 1－未滿3年 | B19: 531091 | C19: 479497 | D19: 51594 | E19: 48487 | F19: 38008 | G19: 10479 | H19: 5887
A20: 3－未滿5年 | B20: 482335 | C20: 462024 | D20: 20311 | E20: 48446 | F20: 44315 | G20: 4131 | H20: 6121
A21: 5－未滿7年 | B21: 746308 | C21: 729653 | D21: 16655 | E21: 89675 | F21: 86223 | G21: 3452 | H21: 6332
A22: 7－未滿10年 | B22: 1090766 | C22: 1066311 | D22: 24455 | E22: 124046 | F22: 121120 | G22: 2926 | H22: 8035
A23: 10年以上 | B23: 2800180 | C23: 2775112 | D23: 25068 | E23: 510268 | F23: 507178 | G23: 3090 | H23: 20767

Sheet 表19
A1: 表 19 臺灣地區汽車停車場概況 | G1: 表 19 臺灣地區汽車停車場概況 ( 續 )
C2: 民國 100 年底 | E2: 單位：車位 | H2: 民國 100 年底 | K2: 單位：車位
A3: 縣 市 別 | B3: 總 計 | D3: 路 外 停 車 場 | F3: 縣 市 別 | H3: 路 邊 停 車 場 | J3: 建築物附屬 | K3: 風景遊樂區
C4: 計 | D4: 公 有 | E4: 私 有 | G4: 計 | H4: 收 費 | I4: 不 收 費 | J4: 停 車 空 間 | K4: 停 車 埸
A5: 臺灣地區 | B5: 3773676 | C5: 567176 | D5: 236911 | E5: 330265 | F5: 臺灣地區 | G5: 247328 | H5: 138169 | I5: 109159 | J5: 2899555 | K5: 59617
A6: 新北市 | B6: 635643 | C6: 190762 | D6: 49656 | E6: 141106 | F6: 新北市 | G6: 34443 | H6: 27928 | I6: 6515 | J6: 404970 | K6: 5468
A7: 臺北市 | B7: 698867 | C7: 145599 | D7: 50104 | E7: 95495 | F7: 臺北市 | G7: 47780 | H7: 23530 | I7: 24250 | J7: 505488 | K7: 0
A8: 臺中市 | B8: 456927 | C8: 43817 | D8: 32618 | E8: 11199 | F8: 臺中市 | G8: 54063 | H8: 19964 | I8: 34099 | J8: 354143 | K8: 4904
A9: 臺南市 | B9: 246396 | C9: 27686 | D9: 13231 | E9: 14455 | F9: 臺南市 | G9: 13314 | H9: 11176 | I9: 2138 | J9: 197044 | K9: 8352
A10: 高雄市 | B10: 439570 | C10: 47706 | D10: 16527 | E10: 31179 | F10: 高雄市 | G10: 39310 | H10: 29743 | I10: 9567 | J10: 350514 | K10: 2040
A11: 臺灣省 | B11: 1296273 | C11: 111606 | D11: 74775 | E11: 36831 | F11: 臺灣省 | G11: 58418 | H11: 25828 | I11: 32590 | J11: 1087396 | K11: 38853
A12: 宜蘭縣 | B12: 61818 | C12: 4102 | D12: 3732 | E12: 370 | F12: 宜蘭縣 | G12: 1047 | H12: 513 | I12: 534 | J12: 53721 | K12: 2948
A13: 桃園縣 | B13: 425277 | C13: 26777 | D13: 10212 | E13: 16565 | F13: 桃園縣 | G13: 14703 | H13: 12455 | I13: 2248 | J13: 381397 | K13: 2400
A14: 新竹縣 | B14: 128569 | C14: 8036 | D14: 6818 | E14: 1218 | F14: 新竹縣 | G14: 3900 | H14: 2788 | I14: 1112 | J14: 109879 | K14: 6754
A15: 苗栗縣 | B15: 55500 | C15: 3920 | D15: 3920 | E15: 0 | F15: 苗栗縣 | G15: 2614 | H15: 0 | I15: 2614 | J15: 44320 | K15: 4646
A16: 彰化縣 | B16: 86527 | C16: 11038 | D16: 9970 | E16: 1068 | F16: 彰化縣 | G16: 6010 | H16: 0 | I16: 6010 | J16: 68851 | K16: 628
A17: 南投縣 | B17: 41148 | C17: 3668 | D17: 3560 | E17: 108 | F17: 南投縣 | G17: 1772 | H17: 0 | I17: 1772 | J17: 28615 | K17: 7093
A18: 雲林縣 | B18: 131026 | C18: 4776 | D18: 4286 | E18: 490 | F18: 雲林縣 | G18: 85 | H18: 0 | I18: 85 | J18: 116085 | K18: 10080
A19: 嘉義縣 | B19: 50184 | C19: 7061 | D19: 4256 | E19: 2805 | F19: 嘉義縣 | G19: 5434 | H19: 607 | I19: 4827 | J19: 37549 | K19: 140
A20: 屏東縣 | B20: 51342 | C20: 3255 | D20: 1907 | E20: 1348 | F20: 屏東縣 | G20: 7059 | H20: 971 | I20: 6088 | J20: 40225 | K20: 803
A21: 臺東縣 | B21: 14415 | C21: 1782 | D21: 1661 | E21: 121 | F21: 臺東縣 | G21: 895 | H21: 552 | I21: 343 | J21: 11025 | K21: 713
A22: 花蓮縣 | B22: 39350 | C22: 7342 | D22: 6591 | E22: 751 | F22: 花蓮縣 | G22: 3494 | H22: 783 | I22: 2711 | J22: 26272 | K22: 2242
A23: 澎湖縣 | B23: 12472 | C23: 1751 | D23: 1751 | E23: 0 | F23: 澎湖縣 | G23: 359 | H23: 0 | I23: 359 | J23: 10362 | K23: 0
A24: 基隆市 | B24: 45875 | C24: 7528 | D24: 5623 | E24: 1905 | F24: 基隆市 | G24: 1109 | H24: 1109 | I24: 0 | J24: 37130 | K24: 108
A25: 新竹市 | B25: 104870 | C25: 15916 | D25: 7727 | E25: 8189 | F25: 新竹市 | G25: 7895 | H25: 4008 | I25: 3887 | J25: 80801 | K25: 258
A26: 嘉義市 | B26: 47900 | C26: 4654 | D26: 2761 | E26: 1893 | F26: 嘉義市 | G26: 2042 | H26: 2042 | I26: 0 | J26: 41164 | K26: 40
F27: 說明：1.臺北市及澎湖縣「風景遊樂區停車場」已併入路外、路邊停車場及建築物附設停車
F28: 空間計算，無個別統計。
F29: 2.本表包含大、小型車停車位。

Sheet 表20
A1: 表 20 國籍航空公司適航航空器－按機種分
C2: 民國 100 年底 | F2: 單位：架
A3: 公 司 名 稱 | B3: 總 計 | C3: 定 翼 機 | F3: 直 昇 機
C4: 客 機 | D4: 貨 機 | E4: 其他定翼機
A5: 總計 | B5: =SUM(B6:B19) -> 195 | C5: =SUM(C6:C19) -> 143 | D5: =SUM(D6:D19) -> 37 | E5: =SUM(E6:E19) -> 6 | F5: =SUM(F6:F19) -> 9
A6: 民用航空局 | B6: =SUM(C6:F6) -> 1 | C6: － | D6: － | E6: 1 | F6: －
A7: 中華航空 | B7: 69 | C7: 49 | D7: 20 | E7: － | F7: －
A8: 長榮航空 | B8: 53 | C8: 36 | D8: 17 | E8: － | F8: －
A9: 華信航空 | B9: 8 | C9: 8 | D9: － | E9: － | F9: －
A10: 遠東航空 | B10: 6 | C10: 6 | D10: － | E10: － | F10: －
A11: 復興航空 | B11: 17 | C11: 17 | D11: － | E11: － | F11: －
A12: 立榮航空 | B12: 19 | C12: 19 | D12: － | E12: － | F12: －
A13: 德安航空 | B13: 6 | C13: 4 | D13: － | E13: － | F13: 2
A14: 中興航空 | B14: 3 | C14: 1 | D14: － | E14: － | F14: 2
A15: 凌天航空 | B15: 5 | C15: － | D15: － | E15: － | F15: 5
A16: 大鵬航空 | B16: 2 | C16: － | D16: － | E16: 2 | F16: －
A17: 漢翔航空 | B17: 1 | C17: － | D17: － | E17: 1 | F17: －
A18: 群鷹翔航空 | B18: 2 | C18: － | D18: － | E18: 2 | F18: －
A19: 華捷商務航空 | B19: 3 | C19: 3 | D19: － | E19: － | F19: －

Sheet 表21
A1: 表 21 國籍航空公司適航航空器－按機齡分
A2: 民國 100 年底
B3: 總 計 | C3: 未滿 5 年 | D3: 5 年 至 | E3: 10 年 至 | F3: 15年以上 | G3: 平均機齡
A4: 公 司 名 稱 | D4: 未滿10年 | E4: 未滿15年
B5: (架) | C5: (架) | D5: (架) | E5: (架) | F5: ( 架 ) | G5: ( 年 )
A6: 總計 | B6: =SUM(B7:B20) -> 195 | C6: =SUM(C7:C20) -> 40 | D6: =SUM(D7:D20) -> 49 | E6: =SUM(E7:E20) -> 66 | F6: =SUM(F7:F20) -> 40 | G6: 10.4
A7: 民用航空局 | B7: =SUM(C7:F7) -> 1 | C7: － | D7: － | E7: － | F7: 1 | G7: 20.1
A8: 中華航空 | B8: 69 | C8: 10 | D8: 31 | E8: 27 | F8: 1 | G8: 8.6
A9: 長榮航空 | B9: 53 | C9: 14 | D9: 16 | E9: 12 | F9: 11 | G9: 9.3
A10: 華信航空 | B10: 8 | C10: 8 | D10: － | E10: － | F10: － | G10: 3.7
A11: 遠東航空 | B11: 6 | C11: － | D11: － | E11: 2 | F11: 4 | G11: 16.6
A12: 復興航空 | B12: 17 | C12: 2 | D12: 1 | E12: 11 | F12: 3 | G12: 12.5
A13: 立榮航空 | B13: 19 | C13: － | D13: － | E13: 11 | F13: 8 | G13: 15
A14: 德安航空 | B14: 6 | C14: － | D14: － | E14: － | F14: 6 | G14: 18.3
A15: 中興航空 | B15: 3 | C15: 1 | D15: － | E15: － | F15: 2 | G15: 16.3
A16: 凌天航空 | B16: 5 | C16: 2 | D16: 1 | E16: 2 | F16: － | G16: 6.9
A17: 大鵬航空 | B17: 2 | C17: － | D17: － | E17: － | F17: 2 | G17: 20.1
A18: 漢翔航空 | B18: =SUM(C18:F18) -> 1 | C18: － | D18: － | E18: 1 | F18: － | G18: 20.1
A19: 群鷹翔航空 | B19: =SUM(C19:F19) -> 2 | C19: － | D19: － | E19: － | F19: 2 | G19: 19.7
A20: 華捷商務航空 | B20: =SUM(C20:F20) -> 3 | C20: 3 | D20: － | E20: － | F20: － | G20: 1.7

Sheet 表22
A1: 表 22 臺閩地區民航機場設施 | H1: 表 22 臺閩地區民航機場設施 ( 續 )
A2: 民國 100 年底 | I2: 民國 100 年底
A3: 機 場 別 | B3: 跑 | C3: 道 | E3: 停 機 坪 | H3: 機 場 別 | I3: 航空站候機室 | J3: 貨 運 站
B4: 長 ( 公 尺 ) | C4: 寬 ( 公尺 ) | E4: 面積 ( 平方公尺 ) | F4: 機位 ( 個 ) | I4: 面積 ( 平方公尺 ) | J4: 面積 ( 平方公尺 ) | K4: 貨運年容量 ( 公噸 )
A5: 臺灣桃園國際機場 | B5: 3660 | C5: 60 | E5: 1396734 | F5: 112 | H5: 臺灣桃園國際機場 | I5: 502474 | J5: 585184 | K5: 2180000
B6: 3350 | C6: 60
A7: 高雄國際機場 | B7: 3150 | C7: 60 | E7: 414835 | F7: 57 | H7: 高雄國際機場 | I7: 88485 | J7: 16813 | K7: 100000
A8: 臺北松山機場 | B8: 2605 | C8: 60 | E8: 288000 | F8: 44 | H8: 臺北松山機場 | I8: 79000 | J8: 2972 | K8: 38000
A9: 臺 中 機 場 | B9: 3659 | C9: 61 | E9: 36280 | F9: 13 | H9: 臺 中 機 場 | I9: 10054 | J9: － | K9: －
A10: 嘉 義 機 場 | B10: 3050 | C10: 45 | E10: 11900 | F10: 3 | H10: 嘉 義 機 場 | I10: 1717 | J10: － | K10: －
A11: 臺 南 機 場 | B11: 3050 | C11: 45 | E11: 43500 | F11: 5 | H11: 臺 南 機 場 | I11: 15066 | J11: － | K11: －
A12: 花 蓮 機 場 | B12: 2751 | C12: 45 | E12: 40248 | F12: 7 | H12: 花 蓮 機 場 | I12: 21669 | J12: 779 | K12: 2400
A13: 臺 東 機 場 | B13: 2438 | C13: 45 | E13: 46190 | F13: 10 | H13: 臺 東 機 場 | I13: 5178 | J13: － | K13: －
A14: 馬 公 機 場 | B14: 3000 | C14: 45 | E14: 44000 | F14: 10 | H14: 馬 公 機 場 | I14: 24738 | J14: 868 | K14: 23570
A15: 金 門 機 場 | B15: 3004 | C15: 45 | E15: 47100 | F15: 9 | H15: 金 門 機 場 | I15: 10593 | J15: 1270 | K15: 31750
A16: 綠 島 機 場 | B16: 992 | C16: 23 | E16: 8130 | F16: 3 | H16: 綠 島 機 場 | I16: 989 | J16: － | K16: －
A17: 蘭 嶼 機 場 | B17: 1132 | C17: 23 | E17: 6880 | F17: 3 | H17: 蘭 嶼 機 場 | I17: 1163 | J17: － | K17: －
A18: 望 安 機 場 | B18: 822 | C18: 23 | E18: 4900 | F18: 4 | H18: 望 安 機 場 | I18: 432 | J18: － | K18: －
A19: 七 美 機 場 | B19: 783 | C19: 23 | E19: 4300 | F19: 4 | H19: 七 美 機 場 | I19: 567 | J19: － | K19: －
A20: 北 竿 機 場 | B20: 1150 | C20: 30 | E20: 8095 | F20: 3 | H20: 北 竿 機 場 | I20: 1365 | J20: － | K20: －
A21: 南 竿 機 場 | B21: 1579 | C21: 30 | E21: 12600 | F21: 4 | H21: 南 竿 機 場 | I21: 2872 | J21: － | K21: －
A22: 恒 春 機 場 | B22: 1700 | C22: 30 | E22: 13860 | F22: 5 | H22: 恒 春 機 場 | I22: 1700 | J22: － | K22: －
A23: 說明：1.桃園國際機場有 2 條跑道，其他機場各有1條跑道。
A24: 2.100年8月屏東機場停止民航營運。

Sheet 表23
A1: 表 23 臺閩地區民航機場助導航及航管設施 | H1: 表 23 臺閩地區民航機場助導航及航管設施 ( 續 )
A2: 年 底 別 | B2: 助 導 航 設 施 | H2: 年 底 別 | J2: 助 導 航 設 施 | L2: 航 管 設 施
B3: 機場管制塔臺 | C3: 多向導航臺 | D3: 歸航臺 | E3: 儀降系統 | F3: 微波降落系統 | G3: 進場燈 | I3: 跑道頭識別燈 | J3: 跑道視程儀 | K3: 目視下滑指示燈 | L3: 終 端 雷 達 | M3: 航 路 雷 達
B4: ( 座 ) | C4: ( 座 ) | D4: ( 座 ) | E4: ( 套 ) | F4: ( 套 ) | G4: ( 套 ) | I4: ( 組 ) | J4: ( 套 ) | K4: ( 組 ) | L4: ( 套 ) | M4: ( 套 )
A5: 88 年底 | B5: 8 | C5: 8 | D5: 11 | E5: 10 | F5: 3 | G5: 12 | H5: 88 年底 | I5: 9 | J5: 7 | K5: 16 | L5: 4 | M5: －
A6: 89 年底 | B6: 9 | C6: 8 | D6: 11 | E6: 10 | F6: 3 | G6: 12 | H6: 89 年底 | I6: 9 | J6: 7 | K6: 16 | L6: 7 | M6: 2
A7: 90 年底 | B7: 10 | C7: 8 | D7: 11 | E7: 10 | F7: 3 | G7: 12 | H7: 90 年底 | I7: 9 | J7: 7 | K7: 18 | L7: 7 | M7: 2
A8: 91 年底 | B8: 10 | C8: 8 | D8: 11 | E8: 10 | F8: 3 | G8: 12 | H8: 91 年底 | I8: 11 | J8: 10 | K8: 27 | L8: 7 | M8: 2
A9: 92 年底 | B9: 12 | C9: 8 | D9: 11 | E9: 12 | F9: 3 | G9: 13 | H9: 92 年底 | I9: 16 | J9: 13 | K9: 29 | L9: 7 | M9: 2
A10: 93 年底 | B10: 12 | C10: 8 | D10: 11 | E10: 12 | F10: 2 | G10: 16 | H10: 93 年底 | I10: 16 | J10: 13 | K10: 30 | L10: 8 | M10: 2
A11: 94 年底 | B11: 12 | C11: 8 | D11: 11 | E11: 12 | F11: 2 | G11: 16 | H11: 94 年底 | I11: 16 | J11: 13 | K11: 30 | L11: 8 | M11: 2
A12: 95 年底 | B12: 12 | C12: 8 | D12: 11 | E12: 13 | F12: 2 | G12: 16 | H12: 95 年底 | I12: 16 | J12: 13 | K12: 30 | L12: 8 | M12: 2
A13: 96 年底 | B13: 12 | C13: 8 | D13: 11 | E13: 13 | F13: 2 | G13: 16 | H13: 96 年底 | I13: 18 | J13: 13 | K13: 33 | L13: 8 | M13: 2
A14: 97 年底 | B14: 11 | C14: 8 | D14: 11 | E14: 13 | F14: 2 | G14: 16 | H14: 97 年底 | I14: 18 | J14: 13 | K14: 33 | L14: 8 | M14: 2
A15: 98 年底 | B15: 11 | C15: 8 | D15: 11 | E15: 13 | F15: 2 | G15: 16 | H15: 98 年底 | I15: 18 | J15: 13 | K15: 33 | L15: 8 | M15: 2
A16: 99 年底 | B16: 11 | C16: 8 | D16: 11 | E16: 13 | F16: 2 | G16: 16 | H16: 99 年底 | I16: 18 | J16: 13 | K16: 33 | L16: 8 | M16: 2
A17: 100 年底 | B17: 11 | C17: 8 | D17: 11 | E17: 13 | F17: 1 | G17: 16 | H17: 100 年底 | I17: 18 | J17: 13 | K17: 33 | L17: 8 | M17: 2

Sheet 表24
C1: 表 24 國 籍 船 舶 登 記 數 | I1: 表 24 國 籍 船 舶 登 記 數 ( 續 )
D2: 民國 100年底 | H2: 單位：艘；噸 | J2: 民國 100 年底 | N2: 單位：艘；噸
B3: 船齡 | C3: 總 計 | E3: 未 滿 5 年 | G3: 5 － 未滿10年 | I3: 10 － 未滿15年 | K3: 15 －未滿 20年 | M3: 20 年 以 上
A4: 船種 | C4: 艘 數 | D4: 載 重 噸 | E4: 艘 數 | F4: 載 重 噸 | G4: 艘 數 | H4: 載 重 噸 | I4: 艘 數 | J4: 載 重 噸 | K4: 艘 數 | L4: 載 重 噸 | M4: 艘 數 | N4: 載 重 噸
A5: 總 | B5: 計 | C5: =SUM(E5,G5,I5,K5,M5) -> 386 | D5: 4494868 | E5: =SUM(E6,E9,E12,E15) -> 25 | F5: =SUM(F6,F9,F12,F15) -> 505169 | G5: =SUM(G6,G9,G12,G15) -> 39 | H5: 478920 | I5: 64 | J5: 1518370 | K5: 82 | L5: 1097274 | M5: 176 | N5: 895135
A6: 總噸位 20－未滿 100 | B6: 計 | C6: =SUM(C7:C8) -> 96 | D6: =SUM(D7:D8) -> 1831 | E6: 7 | F6: 140 | G6: 18 | H6: 233 | I6: 11 | J6: 278 | K6: 13 | L6: 230 | M6: 47 | N6: 950
B7: 貨船 | C7: 18 | D7: 968 | E7: － | F7: － | G7: 1 | H7: 14 | I7: 2 | J7: 167 | K7: 2 | L7: 119 | M7: 13 | N7: 668
B8: 客船 | C8: =SUM(E8,G8,I8,K8,M8) -> 78 | D8: 863 | E8: 7 | F8: 140 | G8: 17 | H8: 219 | I8: 9 | J8: 111 | K8: 11 | L8: 111 | M8: 34 | N8: 282
A9: 總噸位 100－未滿 200 | B9: 計 | C9: =SUM(C10:C11) -> 61 | D9: 5312 | E9: =SUM(E10:E11) -> 3 | F9: 102 | G9: 7 | H9: 315 | I9: 9 | J9: 488 | K9: 17 | L9: 1642 | M9: 25 | N9: 2765
B10: 貨船 | C10: 21 | D10: 3921 | E10: － | F10: － | G10: － | H10: － | I10: 1 | J10: 196 | K10: 4 | L10: 1186 | M10: 16 | N10: 2539
B11: 客船 | C11: 40 | D11: 1391 | E11: 3 | F11: 102 | G11: 7 | H11: 315 | I11: 8 | J11: 292 | K11: 13 | L11: 456 | M11: 9 | N11: 226
A12: 總噸位 200－未滿1,000 | B12: 計 | C12: 85 | D12: 56998 | E12: =SUM(E13:E14) -> 5 | F12: 2353 | G12: 3 | H12: 958 | I12: 9 | J12: 4640 | K12: 19 | L12: 12868 | M12: 49 | N12: 36179
B13: 貨船 | C13: 67 | D13: 56378 | E13: 4 | F13: 2283 | G13: 1 | H13: 846 | I13: 7 | J13: 4578 | K13: 13 | L13: 12664 | M13: 42 | N13: 36007
B14: 客船 | C14: 18 | D14: 620 | E14: 1 | F14: 70 | G14: 2 | H14: 112 | I14: 2 | J14: 62 | K14: 6 | L14: 204 | M14: 7 | N14: 172
A15: 總噸位 1,000以上 | B15: 計 | C15: 144 | D15: =SUM(F15,H15,J15,L15,N15) -> 4430727 | E15: =SUM(E16:E17) -> 10 | F15: =SUM(F16:F17) -> 502574 | G15: =SUM(G16:G17) -> 11 | H15: =SUM(H16:H17) -> 477414 | I15: =SUM(I16:I17) -> 35 | J15: =SUM(J16:J17) -> 1512964 | K15: 33 | L15: 1082534 | M15: 55 | N15: 855241
B16: 貨船 | C16: 138 | D16: =SUM(F16,H16,J16,L16,N16) -> 4426199 | E16: 10 | F16: 502574 | G16: 10 | H16: 477139 | I16: 34 | J16: 1512644 | K16: 33 | L16: 1082534 | M16: 51 | N16: 851308
B17: 客船 | C17: 6 | D17: =SUM(F17,H17,J17,L17,N17) -> 4528 | E17: － | F17: － | G17: 1 | H17: 275 | I17: 1 | J17: 320 | K17: － | L17: － | M17: 4 | N17: 3933
A18: 說明：本表不含未滿20總噸位之小船。

Sheet 表25
A1: 表 25 臺 灣 地 區 港 埠 概 況 | J1: 表 25 臺 灣 地 區 港 埠 概 況 ( 續 1 ) | P1: 表 25 臺 灣 地 區 港 埠 概 況 ( 續 2 ) | V1: 表 25 臺 灣 地 區 港 埠 概 況 ( 續完 )
A2: 民國 100年底 | I2: 民國 100 年底 | O2: 民國 100 年底 | U2: 民國100 年底
A3: 港 別 | B3: 面 積 ( 公 頃 ) | I3: 水 深 | J3: ( 公尺 ) | L3: 寬 度 | M3: ( 公尺 ) | O3: 泊地面積 ( 千平方公尺 ) | Q3: 防波堤長度 | R3: 倉 | S3: 棧 | U3: 碼 | X3: 頭
B4: 總 計 | D4: 陸 域 | F4: 海 域 | H4: 港 口 | I4: 航 道 | J4: 碼 頭 | K4: 淺水碼頭 | L4: 港 口 | M4: 航 道 | N4: 計 | O4: 內 港 | P4: 外 港 | Q4: ( 公尺 ) | R4: 棟 | S4: 總 容 量 | T4: 座 數 | U4: 長 度 | V4: 寬 度 | W4: 深 度 | X4: 泊船總噸 | Y4: 工人數
S5: (千公噸) | T5: (座) | U5: (公尺) | V5: (公尺) | W5: (公尺) | X5: (千噸) | Y5: (人)
A6: 總 計 | B6: =SUM(B7:B13) -> 33879 | D6: =SUM(D7:D13) -> 5315 | F6: =SUM(F7:F13) -> 28564 | H6: － | I6: － | J6: － | K6: － | L6: － | M6: － | N6: =SUM(N7:N13) -> 101389 | O6: =SUM(O7:O13) -> 18785 | P6: 82604 | Q6: 32424 | R6: 139 | S6: 1555.2 | T6: 299 | U6: 64316.5 | V6: － | W6: － | X6: =SUM(X7:X13) -> 8758 | Y6: =SUM(Y7:Y13) -> 192
A7: 基隆港 | B7: =SUM(D7:F7) -> 572 | D7: 202 | F7: 370 | H7: 22.0~24.0 | I7: 15.0~20.0 | J7: 9.0~14.5 | K7: 3.0~8.0 | L7: 280 | M7: 250~360 | N7: =SUM(O7:P7) -> 412 | O7: － | P7: 412 | Q7: 4606 | R7: 40 | S7: 128 | T7: 56 | U7: 9973.7 | V7: 4.9~120.0 | W7: 3.0~14.5 | X7: 774 | Y7: －
A8: 附屬港：蘇澳港 | B8: =SUM(D8:F8) -> 376 | D8: 86 | F8: 290 | H8: 26 | I8: 10.0~26.0 | J8: 5.0~15.0 | K8: 2.0~5.0 | L8: 240 | M8: 140~240 | N8: － | O8: － | P8: － | Q8: 2931 | R8: 3 | S8: 31 | T8: 13 | U8: 2610 | V8: 20 | W8: 5.0~15.0 | X8: 316 | Y8: －
A9: 臺北港 | B9: 3102 | D9: 175 | F9: 2927 | H9: 16 | I9: 14.5~16.0 | J9: 6.0~14.0 | K9: 4.5 | L9: 300 | M9: 300~400 | N9: － | O9: － | P9: － | Q9: 6813 | R9: － | S9: － | T9: 17 | U9: 3947 | V9: 25.0~75.0 | W9: 4.5~14.0 | X9: 380 | Y9: －
A10: 高雄港 | B10: 17759 | D10: 1660 | F10: 16099 | H10: 12.5~17.0 | I10: 12.5~17.0 | J10: 4.0~17.6 | K10: 4.5~9.0 | L10: 98~183 | M10: 98~280 | N10: =SUM(O10:P10) -> 74780 | O10: － | P10: 74780 | Q10: 5383 | R10: 64 | S10: 957 | T10: 121 | U10: 27788.8 | V10: 8.5~50.0 | W10: 4.0~16.5 | X10: 4123 | Y10: －
A11: 附屬港：安平港 | B11: 477 | D11: 200 | F11: 277 | H11: 11.5 | I11: 11.5 | J11: 7.0~11.0 | K11: 5.0~7.0 | L11: 180 | M11: 180 | N11: =SUM(O11:P11) -> 6740 | O11: － | P11: 6740 | Q11: 3411 | R11: 3 | S11: 4.2 | T11: 17 | U11: 2926 | V11: 18.0~30.0 | W11: 5.0~11.0 | X11: 178 | Y11: －
A12: 花蓮港 | B12: 308 | D12: 172 | F12: 136 | H12: 17.5 | I12: 9.0~16.5 | J12: 6.5~16.5 | K12: 2.5~3.5 | L12: 275 | M12: 100 | N12: =SUM(O12:P12) -> 672 | O12: － | P12: 672 | Q12: 5065 | R12: 15 | S12: 41 | T12: 25 | U12: 4742 | V12: 10.0~50.0 | W12: 6.5~16.5 | X12: 618 | Y12: 192
A13: 臺中港 | B13: 11285 | D13: 2820 | F13: 8465 | H13: 16.1~16.5 | I13: 13.1~17.5 | J13: 9.3~19.5 | K13: 3.7~6.0 | L13: 350~470 | M13: 320~500 | N13: 18785 | O13: 18785 | P13: － | Q13: 4215 | R13: 14 | S13: 394 | T13: 50 | U13: 12329 | V13: 15.8~45.5 | W13: 9.0~18.0 | X13: 2369 | Y13: －

Sheet 表26
A1: 表 26 臺 灣 地 區 港 埠 機 具 及 車 輛
D2: 民國 100 年底
C3: 機 | H3: 具
A4: 港 別 | B4: 貨 櫃 起 重 機 | D4: 跨 載 機 | F4: 堆 高 機 | H4: 起 重 機
B5: 臺 | C5: 噸量 | D5: 臺 | E5: 噸量 | F5: 臺 | G5: 噸量 | H5: 臺 | I5: 噸量
A6: 總 計 | B6: =SUM(B7:B13) -> 56 | C6: =SUM(C7:C13) -> 2198 | D6: 48 | E6: 1665 | F6: 251 | G6: 1420 | H6: 13 | I6: 710
A7: 基隆港 | B7: 15 | C7: 640 | D7: 20 | E7: 735 | F7: 27 | G7: 156 | H7: 1 | I7: 40
A8: 附屬港：蘇澳港 | B8: － | C8: － | D8: － | E8: － | F8: － | G8: － | H8: － | I8: －
A9: 臺北港 | B9: － | C9: － | D9: － | E9: － | F9: 1 | G9: 3 | H9: － | I9: －
A10: 高雄港 | B10: 3 | C10: 123 | D10: － | E10: － | F10: 25 | G10: 133 | H10: 6 | I10: 175
A11: 附屬港：安平港 | B11: － | C11: － | D11: － | E11: － | F11: 1 | G11: 3 | H11: － | I11: －
A12: 花蓮港 | B12: － | C12: － | D12: － | E12: － | F12: 3 | G12: 6 | H12: － | I12: －
A13: 臺中港 | B13: 38 | C13: 1435 | D13: 28 | E13: 930 | F13: 194 | G13: 1119 | H13: 6 | I13: 495
A14: 說明：本表為國際商港資料，不含廠商自有部分。
A17: 表 26 臺 灣 地 區 港 埠 機 具 及 車 輛 ( 續 )
D18: 民國 100 年底
C19: 機 | D19: 具 | G19: 車 | H19: 輛
A20: 港 別 | B20: 抓 斗 | D20: 吸 穀 機 | F20: 拖 車 | H20: 拖 板
B21: 臺 | C21: 噸量 | D21: 臺 | E21: 噸量 | F21: 臺 | G21: 噸量 | H21: 臺 | I21: 噸量
A22: 總 計 | B22: =SUM(B23:B29) -> 196 | C22: =SUM(C23:C29) -> 774 | D22: 5 | E22: 2900 | F22: 37 | G22: 973 | H22: 232 | I22: 763
A23: 基隆港 | B23: － | C23: － | D23: － | E23: － | F23: 5 | G23: 14 | H23: － | I23: －
A24: 附屬港：蘇澳港 | B24: － | C24: － | D24: － | E24: － | F24: － | G24: － | H24: － | I24: －
A25: 臺北港 | B25: － | C25: － | D25: － | E25: － | F25: － | G25: － | H25: － | I25: －
A26: 高雄港 | B26: － | C26: － | D26: － | E26: － | F26: 3 | G26: 10 | H26: 2 | I26: 23
A27: 附屬港：安平港 | B27: － | C27: － | D27: － | E27: － | F27: － | G27: － | H27: － | I27: －
A28: 花蓮港 | B28: － | C28: － | D28: － | E28: － | F28: － | G28: － | H28: － | I28: －
A29: 臺中港 | B29: 196 | C29: 774 | D29: 5 | E29: 2900 | F29: 29 | G29: 949 | H29: 230 | I29: 740

Sheet 表27
A1: 表 27 基 隆 港 碼 頭 概 況
A2: 民國100 年底
A3: 名 稱 | B3: 長 度 | C3: 寬 度 | D3: 深 度 | E3: 泊 船 總 噸
B4: ( 公 尺 ) | C4: ( 公 尺 ) | D4: ( 公 尺 ) | E4: ( 噸 )
A5: 總 計 | B5: 9973.7 | C5: － | D5: － | E5: =SUM(E6:E61) -> 774400
A6: 西1號碼頭 | B6: 149.1 | C6: 11.4 | D6: 8 | E6: 5000
A7: 西1B號碼頭 | B7: 90.9 | C7: 10.9 | D7: 9 | E7: 3000
A8: 西2號碼頭 | B8: 204.5 | C8: 12.4 | D8: 9 | E8: 10000
A9: 西3號碼頭 | B9: 183 | C9: 12.4 | D9: 9 | E9: 10000
A10: 西4號碼頭 | B10: 167 | C10: 12.4 | D10: 9 | E10: 10000
A11: 西5號碼頭 | B11: 54.5 | C11: 12.8 | D11: 9 | E11: 500
A12: 西6號碼頭 | B12: 131 | C12: 14.3 | D12: 9 | E12: 5000
A13: 西7號碼頭 | B13: 106 | C13: 12.9 | D13: 9 | E13: 5000
A14: 西8號碼頭 | B14: 136.4 | C14: 12.9 | D14: 8 | E14: 5000
A15: 西9號碼頭 | B15: 136.4 | C15: 12.9 | D15: 8 | E15: 5000
A16: 西10號碼頭 | B16: 136.4 | C16: 12.9 | D16: 8 | E16: 5000
A17: 西11號碼頭 | B17: 167.8 | C17: 17.6 | D17: 5.5-6.5 | E17: 3000
A18: 西12號碼頭 | B18: 170 | C18: 17.6 | D18: 6.5 | E18: 3000
A19: 西12B號碼頭 | B19: 251 | C19: 17.6 | D19: 3.0-9.0 | E19: 10000
A20: 西14號碼頭 | B20: 172.4 | C20: 14.8 | D20: 9 | E20: 10000
A21: 西15號碼頭 | B21: 148.3 | C21: 14.8 | D21: 9 | E21: 10000
A22: 西16號碼頭 | B22: 156.5 | C22: 34 | D22: 12 | E22: 20000
A23: 西17號碼頭 | B23: 207 | C23: 34 | D23: 12 | E23: 30000
A24: 西18號碼頭 | B24: 403.9 | C24: 20 | D24: 12.0-13.0 | E24: 30000
A25: 西19號碼頭 | B25: 364.4 | C25: 37.4 | D25: 14.5 | E25: 60000
A26: 西20號碼頭 | B26: 325.6 | C26: 120 | D26: 10.5 | E26: 30000
A27: 西21號碼頭 | B27: 236.6 | C27: 120 | D27: 10 | E27: 20000
A28: 西22號碼頭 | B28: 190 | C28: 120 | D28: 10.0-11.0 | E28: 30000
A29: 西23號碼頭 | B29: 210 | C29: 120 | D29: 11 | E29: 30000
A30: 西24號碼頭 | B30: 240 | C30: 120 | D30: 13 | E30: 30000
A31: 西25號碼頭 | B31: 300 | C31: 120 | D31: 13 | E31: 30000
A32: 西26號碼頭 | B32: 210 | C32: 120 | D32: 11 | E32: 30000
A33: 西27號碼頭 | B33: 150 | C33: 13 | D33: 7 | E33: 5000
A34: 西28A號碼頭 | B34: 82.4 | C34: 65.4 | D34: 5 | E34: 500
A35: 西28B號碼頭 | B35: 53 | C35: 15.4 | D35: 3.5 | E35: 500
A36: 西29號碼頭 | B36: 178 | C36: 11 | D36: 4.5-6.5 | E36: 3000
A37: 西30號碼頭 | B37: 180 | C37: 11 | D37: 10.5 | E37: 20000
A38: 西31號碼頭 | B38: 165 | C38: 15 | D38: 10.5 | E38: 20000
A39: 西32號碼頭 | B39: 165 | C39: 15 | D39: 11 | E39: 20000
A40: 西33號碼頭 | B40: 210 | C40: 14.8 | D40: 11.5 | E40: 30000
A41: 西33B號碼頭 | B41: 95.8 | C41: 11.9 | D41: 6.5 | E41: 3000
A42: 東1號碼頭 | B42: 96.19 | C42: 4.9 | D42: 4.5 | E42: 500
A43: 東2號碼頭 | B43: 200 | C43: 10.5 | D43: 9 | E43: 20000
A44: 東3號碼頭 | B44: 170 | C44: 10.5 | D44: 9 | E44: 10000
A45: 東4號碼頭 | B45: 306.3 | C45: 10.5 | D45: 9 | E45: 10000
A46: 東5號碼頭 | B46: 169.2 | C46: 10.5 | D46: 9 | E46: 10000
A47: 東6號碼頭 | B47: 180 | C47: 15 | D47: 9 | E47: 20000
A48: 東7號碼頭 | B48: 178 | C48: 27 | D48: 9 | E48: 10000
A49: 東8號碼頭 | B49: 240 | C49: 47 | D49: 12 | E49: 30000
A50: 東9號碼頭 | B50: 220 | C50: 76 | D50: 12 | E50: 30000
A51: 東10號碼頭 | B51: 200 | C51: 76 | D51: 12 | E51: 30000
A52: 東11號碼頭 | B52: 200 | C52: 76 | D52: 13 | E52: 30000
A53: 東12號碼頭 | B53: 50 | C53: 56 | D53: 5 | E53: 3000
A54: 東14號碼頭 | B54: 112.7 | C54: 20 | D54: 5 | E54: 300
A55: 東15號碼頭 | B55: 208.7 | C55: 21 | D55: 3 | E55: 300
A56: 東16號碼頭 | B56: 125 | C56: 8 | D56: 3 | E56: 300
A57: 東17號碼頭 | B57: 223.6 | C57: 8 | D57: 3.0-8.0 | E57: 500
A58: 東19號碼頭 | B58: 220 | C58: 30 | D58: 9 | E58: 15000
A59: 東20號碼頭 | B59: 120 | C59: 30 | D59: 6 | E59: 3000
A60: 東21號碼頭 | B60: 113 | C60: 20 | D60: 9 | E60: 5000
A61: 東22號碼頭 | B61: 113 | C61: 20 | D61: 9 | E61: 5000

Sheet 表28
A1: 表 28 蘇 澳 港 碼 頭 概 況
C2: 民國 100 年底
A3: 名 稱 | B3: 長 度 | C3: 寬 度 | D3: 深 度 | E3: 泊 船 總 噸
B4: ( 公 尺 ) | C4: ( 公 尺 ) | D4: ( 公 尺 ) | E4: ( 噸 )
A5: 總 計 | B5: =SUM(B6:B18) -> 2610 | C5: － | D5: － | E5: =SUM(E6:E18) -> 316000
A6: 1號碼頭 | B6: 210 | C6: 20 | D6: 5.0-11.0 | E6: 6000
A7: 2號碼頭 | B7: 175 | C7: 20 | D7: 11 | E7: 20000
A8: 3號碼頭 | B8: 215 | C8: 20 | D8: 11 | E8: 30000
A9: 4號碼頭 | B9: 300 | C9: 20 | D9: 11 | E9: 30000
A10: 5號碼頭 | B10: 200 | C10: 20 | D10: 11 | E10: 30000
A11: 6號碼頭 | B11: 290 | C11: 20 | D11: 15 | E11: 80000
A12: 7號碼頭 | B12: 240 | C12: 20 | D12: 13 | E12: 60000
A13: 8號碼頭 | B13: 125 | C13: 20 | D13: 8 | E13: 6000
A14: 9號碼頭 | B14: 125 | C14: 20 | D14: 8 | E14: 6000
A15: 10號碼頭 | B15: 175 | C15: 20 | D15: 9 | E15: 12000
A16: 11號碼頭 | B16: 175 | C16: 20 | D16: 9 | E16: 12000
A17: 12號碼頭 | B17: 200 | C17: 20 | D17: 9 | E17: 12000
A18: 13號碼頭 | B18: 180 | C18: 20 | D18: 9 | E18: 12000

Sheet 表29
A1: 表 29 臺 北 港 碼 頭 概 況
C2: 民國 100 年底
A3: 名 稱 | B3: 長 度 | C3: 寬 度 | D3: 深 度 | E3: 泊 船 總 噸
B4: ( 公 尺 ) | C4: ( 公 尺 ) | D4: ( 公 尺 ) | E4: ( 噸 )
A5: 總 計 | B5: =SUM(B6:B22) -> 3947 | C5: － | D5: － | E5: =SUM(E6:E22) -> 380000
A6: 東1號碼頭 | B6: 170 | C6: 30 | D6: 9 | E6: 5000
A7: 東2號碼頭 | B7: 170 | C7: 30 | D7: 9 | E7: 10000
A8: 東3號碼頭 | B8: 245 | C8: 30 | D8: 11 | E8: 20000
A9: 東4號碼頭 | B9: 150 | C9: 25 | D9: 13 | E9: 15000
A10: 東5號碼頭 | B10: 150 | C10: 25 | D10: 9 | E10: 5000
A11: 東6號碼頭 | B11: 157 | C11: 25 | D11: 6.5 | E11: 5000
A12: 東7號碼頭 | B12: 250 | C12: 25 | D12: 4.5 | E12: －
A13: 東8號碼頭 | B13: 125 | C13: 55 | D13: 4.5 | E13: －
A14: 東9號碼頭 | B14: 200 | C14: 60 | D14: 4.5 | E14: －
A15: 東13號碼頭 | B15: 200 | C15: 25 | D15: 12 | E15: 5000
A16: 東14號碼頭 | B16: 300 | C16: 40 | D16: 14 | E16: 60000
A17: 東15號碼頭 | B17: 250 | C17: 40 | D17: 14 | E17: 40000
A18: 東16號碼頭 | B18: 360 | C18: 50 | D18: 14 | E18: 60000
A19: 北2號碼頭 | B19: 200 | C19: 40 | D19: 9 | E19: 5000
A20: 北3號碼頭 | B20: 360 | C20: 75 | D20: 12 | E20: 30000
A21: 北4號碼頭 | B21: 330 | C21: 75 | D21: 14 | E21: 60000
A22: 北5號碼頭 | B22: 330 | C22: 75 | D22: 14 | E22: 60000

Sheet 表30
A1: 表 30 高 雄 港 碼 頭 概 況 ( 續完 )
A2: 民國 100 年底
A3: 名 稱 | B3: 長 度 | C3: 寬 度 | D3: 深 度 | E3: 泊 船 總 噸
B4: ( 公 尺 ) | C4: ( 公 尺 ) | D4: ( 公 尺 ) | E4: ( 噸 )
A5: 總 計 | B5: =SUM(B6:B126) -> 27788.8 | C5: － | D5: － | E5: =SUM(E6:E126) -> 4123000
A6: 新濱1號碼頭 | B6: 139 | C6: 12.6 | D6: 9 | E6: 8000
A7: 新濱2號碼頭 | B7: 139 | C7: 12.6 | D7: 9 | E7: 10000
A8: 1號碼頭 | B8: 259.3 | C8: 9.7 | D8: 9 | E8: 10000
A9: 2號碼頭 | B9: 137 | C9: 9.7 | D9: 9 | E9: 8000
A10: 3號碼頭 | B10: 150 | C10: 10.7 | D10: 9 | E10: 10000
A11: 4號碼頭 | B11: 150 | C11: 10.7 | D11: 9 | E11: 10000
A12: 5號碼頭 | B12: 150 | C12: 10.7 | D12: 9 | E12: 10000
A13: 6號碼頭 | B13: 150 | C13: 10.7 | D13: 9 | E13: 10000
A14: 7號碼頭 | B14: 150 | C14: 11 | D14: 9 | E14: 10000
A15: 8號碼頭 | B15: 150 | C15: 9 | D15: 10.5 | E15: 10000
A16: 9號碼頭 | B16: 141.7 | C16: 9 | D16: 10.5 | E16: 15000
A17: 10號碼頭 | B17: 150 | C17: 11.7 | D17: 10.5 | E17: 20000
A18: 修造廠艤裝碼頭 | B18: 122.6 | C18: 30 | D18: 6.5 | E18: 3000
A19: 淺水1號碼頭 | B19: 177.4 | C19: 23.8 | D19: 4.5-9.0 | E19: 3000
A20: 淺水2號碼頭 | B20: 375.3 | C20: 23.8 | D20: 6.5 | E20: 3000
A21: 淺水3號碼頭 | B21: 378.3 | C21: 23.8 | D21: 4.5 | E21: 1000
A22: 11號碼頭 | B22: 160.5 | C22: 10.5 | D22: 9 | E22: 10000
A23: 12號碼頭 | B23: 160.5 | C23: 10.5 | D23: 9 | E23: 8000
A24: 登1號碼頭 | B24: 94.7 | C24: 25 | D24: 5 | E24: 3500
A25: 登2號碼頭 | B25: 89.9 | C25: 25 | D25: 5 | E25: 3500
A26: 13號碼頭 | B26: 156 | C26: 10.5 | D26: 9 | E26: 10000
A27: 14號碼頭 | B27: 150 | C27: 10.5 | D27: 9 | E27: 10000
A28: 15號碼頭 | B28: 150 | C28: 10.5 | D28: 9 | E28: 10000
A29: 16號碼頭 | B29: 180.2 | C29: 10.5 | D29: 9 | E29: 10000
A30: 17號碼頭 | B30: 151.3 | C30: 25 | D30: 10.5 | E30: 15000
A31: 18號碼頭 | B31: 150 | C31: 25 | D31: 10.5 | E31: 15000
A32: 19號碼頭 | B32: 151.3 | C32: 25 | D32: 10.5 | E32: 15000
A33: 20號碼頭 | B33: 150.7 | C33: 25 | D33: 10.5 | E33: 15000
A34: 21號碼頭 | B34: 124.7 | C34: 25 | D34: 5.0-10.5 | E34: 15000
A35: 22號碼頭 | B35: 120.2 | C35: 14 | D35: 10.5 | E35: 20000
A36: 25號碼頭 | B36: 250 | C36: 23.5 | D36: 10.5 | E36: 20000
A37: 27號碼頭 | B37: 222.3 | C37: 10 | D37: 10 | E37: 10000
A38: 28號碼頭 | B38: 236 | C38: 8.5 | D38: 10.5 | E38: 20000
A39: 29號碼頭 | B39: 149.9 | C39: 18 | D39: 10.5 | E39: 20000
A40: 30號碼頭 | B40: 293.5 | C40: 48 | D40: 10.5 | E40: 20000
A41: 31號碼頭 | B41: 195.6 | C41: 20 | D41: 10.5 | E41: 15000
A42: 32號碼頭 | B42: 200 | C42: 20 | D42: 10.5 | E42: 20000
A43: 33號碼頭 | B43: 200 | C43: 20 | D43: 10.5 | E43: 20000
A44: 34號碼頭 | B44: 200 | C44: 20 | D44: 10.5 | E44: 20000
A45: 35號碼頭 | B45: 215 | C45: 20 | D45: 10.5 | E45: 20000
A46: 36號碼頭 | B46: 199.4 | C46: 20 | D46: 10.5 | E46: 20000
A47: 37號碼頭 | B47: 198.7 | C47: 20 | D47: 10.5 | E47: 20000
A48: 38號碼頭 | B48: 197.7 | C48: 20 | D48: 10.5 | E48: 20000
A49: 39號碼頭 | B49: 199.1 | C49: 20 | D49: 10.5 | E49: 20000
A50: 40號碼頭 | B50: 214.2 | C50: 30 | D50: 10.5 | E50: 20000
A51: 41號碼頭 | B51: 204.5 | C51: 30 | D51: 10.5 | E51: 20000
A52: 42號碼頭 | B52: 242.7 | C52: 30 | D52: 10.5 | E52: 20000
A53: 43號碼頭 | B53: 187.5 | C53: 20 | D53: 10.5 | E53: 20000
A54: 44號碼頭 | B54: 199.2 | C54: 20 | D54: 10.5 | E54: 20000
A55: 45號碼頭 | B55: 200 | C55: 20 | D55: 10.5 | E55: 20000
A56: 46號碼頭 | B56: 200 | C56: 20 | D56: 11 | E56: 30000
A57: 47號碼頭 | B57: 200 | C57: 20 | D57: 11 | E57: 30000
A58: 48號碼頭 | B58: 260.4 | C58: 15 | D58: 10.5 | E58: 30000
A59: 49號碼頭 | B59: 200 | C59: 12.6 | D59: 10.5 | E59: 30000
A60: 50號碼頭 | B60: 200 | C60: 12.6 | D60: 10.5 | E60: 30000
A61: 51號碼頭 | B61: 200 | C61: 12.6 | D61: 10.5 | E61: 30000
A62: 52號碼頭 | B62: 200 | C62: 12.6 | D62: 10.5 | E62: 30000
A63: 53號碼頭 | B63: 200 | C63: 12.6 | D63: 10.5 | E63: 30000
A64: 54號碼頭 | B64: 200 | C64: 18 | D64: 10.5 | E64: 30000
A65: 55號碼頭 | B65: 200 | C65: 18 | D65: 10.5 | E65: 30000
A66: 56號碼頭 | B66: 200 | C66: 18 | D66: 10.5 | E66: 30000
A67: 57號碼頭 | B67: 183.6 | C67: 18 | D67: 10.5 | E67: 30000
A68: 58號碼頭 | B68: 306 | C68: 18 | D68: 10.5 | E68: 1000
A69: 59號碼頭 | B69: 164 | C69: 20 | D69: 6.5 | E69: 3000
A70: 60號碼頭 | B70: 150.8 | C70: 25 | D70: 6.5 | E70: 3000
A71: 61號碼頭 | B71: 230 | C71: 20 | D71: 10.5 | E71: 30000
A72: 62號碼頭 | B72: 230 | C72: 20 | D72: 10.5 | E72: 30000
A73: 63號碼頭 | B73: 274.9 | C73: 30 | D73: 14.5 | E73: 30000
A74: 64號碼頭 | B74: 245.5 | C74: 30 | D74: 14.5 | E74: 30000
A75: 65號碼頭 | B75: 351.5 | C75: 30 | D75: 14.5 | E75: 30000
A76: 66號碼頭 | B76: 408.5 | C76: 30 | D76: 14.5 | E76: 30000
A77: 68號碼頭 | B77: 432.2 | C77: 30 | D77: 14 | E77: 75000
A78: 69號碼頭 | B78: 320 | C78: 50 | D78: 14 | E78: 75000
A79: 70號碼頭 | B79: 320 | C79: 50 | D79: 14 | E79: 75000
A80: 71號碼頭 | B80: 329.9 | C80: 19 | D80: 14 | E80: 75000
A81: 72號碼頭 | B81: 300.1 | C81: 19 | D81: 14 | E81: 75000
A82: 73號碼頭 | B82: 320 | C82: 24.2 | D82: 14 | E82: 70000
A83: 74號碼頭 | B83: 314.1 | C83: 42 | D83: 13 | E83: 30000
A84: 75號碼頭 | B84: 319.9 | C84: 33 | D84: 14 | E84: 75000
A85: 76號碼頭 | B85: 320.1 | C85: 33 | D85: 14 | E85: 75000
A86: 77號碼頭 | B86: 356 | C86: 39 | D86: 15 | E86: 75000
A87: 78號碼頭 | B87: 320 | C87: 38.1 | D87: 15 | E87: 70000
A88: 79號碼頭 | B88: 355 | C88: 38.5 | D88: 15 | E88: 70000
A89: 80號碼頭 | B89: 340 | C89: 32 | D89: 14 | E89: 70000
A90: 81號碼頭 | B90: 120 | C90: 32 | D90: 14 | E90: 70000
A91: 85號碼頭 | B91: 225.2 | C91: 20 | D91: 9 | E91: 30000
A92: 86號碼頭 | B92: 225.2 | C92: 20 | D92: 9 | E92: 30000
A93: 87號碼頭 | B93: 300 | C93: 20 | D93: 10.5 | E93: 30000
A94: 88號碼頭 | B94: 224.5 | C94: 20 | D94: 10.5 | E94: 30000
A95: 89號碼頭 | B95: 224.5 | C95: 20 | D95: 10.5 | E95: 30000
A96: 90號碼頭 | B96: 400 | C96: 18.5 | D96: 10.5 | E96: 30000
A97: 91號碼頭 | B97: 101 | C97: 18.5 | D97: 4.0-10.5 | E97: 30000
A98: 94號碼頭 | B98: 170.6 | C98: 30 | D98: 10.5 | E98: 20000
A99: 95號碼頭 | B99: 170.6 | C99: 30 | D99: 10.5 | E99: 20000
A100: 96號碼頭 | B100: 170.6 | C100: 30 | D100: 10.5 | E100: 20000
A101: 97號碼頭 | B101: 380 | C101: 28 | D101: 16.5 | E101: 100000
A102: 98號碼頭 | B102: 360 | C102: 28 | D102: 16.5 | E102: 100000
A103: 99號碼頭 | B103: 149.4 | C103: 28 | D103: 7.5-12.5 | E103: 10000
A104: 101號碼頭 | B104: 380 | C104: 20 | D104: 16.5 | E104: 130000
A105: 102號碼頭 | B105: 177.2 | C105: 21.8 | D105: 11.8 | E105: 30000
A106: 103號碼頭 | B106: 270 | C106: 16 | D106: 11.8 | E106: 40000
A107: 104號碼頭 | B107: 251.7 | C107: 20 | D107: 16 | E107: 100000
A108: 105號碼頭 | B108: 300.2 | C108: 20 | D108: 16 | E108: 50000
A109: 106號碼頭 | B109: 365 | C109: 30 | D109: 16.5 | E109: 100000
A110: 107號碼頭 | B110: 375 | C110: 43 | D110: 17.6 | E110: 100000
A111: 108號碼頭 | B111: 375 | C111: 43 | D111: 17.6 | E111: 100000
A112: 111號碼頭 | B112: 264.2 | C112: 35 | D112: 16.5 | E112: 100000
A113: 112號碼頭 | B113: 248.8 | C113: 23 | D113: 8.5 | E113: 10000
A114: 115號碼頭 | B114: 276.9 | C114: 30 | D114: 14 | E114: 70000
A115: 116號碼頭 | B115: 320 | C115: 30 | D115: 14 | E115: 75000
A116: 117號碼頭 | B116: 320 | C116: 30 | D116: 14 | E116: 75000
A117: 118號碼頭 | B117: 320 | C117: 30 | D117: 14 | E117: 75000
A118: 119號碼頭 | B118: 320 | C118: 30 | D118: 14 | E118: 75000
A119: 120號碼頭 | B119: 320 | C119: 30 | D119: 14 | E119: 75000
A120: 121號碼頭 | B120: 320 | C120: 30 | D120: 14 | E120: 75000
A121: 122號碼頭 | B121: 336.3 | C121: 30 | D121: 14 | E121: 75000
A122: 141號碼頭 | B122: 240 | C122: 12 | D122: 5 | E122: 30000
A123: 142號碼頭 | B123: 167 | C123: 12 | D123: 11 | E123: 30000
A124: 143號碼頭 | B124: 117.5 | C124: 12 | D124: 7 | E124: 5000
A125: 144號碼頭 | B125: 117.5 | C125: 12 | D125: 7 | E125: 5000
A126: 145號碼頭 | B126: 117.5 | C126: 12 | D126: 7 | E126: 5000

Sheet 表31
A1: 表 31 安 平 港 碼 頭 概 況
A2: 民國 100 年底
A3: 名 稱 | B3: 長 度 | C3: 寬 度 | D3: 深 度 | E3: 泊 船 總 噸
B4: ( 公 尺 ) | C4: ( 公 尺 ) | D4: ( 公 尺 ) | E4: ( 噸 )
A5: 總 計 | B5: =SUM(B6:B22) -> 2926 | C5: － | D5: － | E5: =SUM(E6:E22) -> 178000
A6: 1號碼頭 | B6: 175 | C6: 25 | D6: 9 | E6: 10000
A7: 2號碼頭 | B7: 170 | C7: 23 | D7: 9 | E7: 10000
A8: 3號碼頭 | B8: 160 | C8: 30 | D8: 9 | E8: 10000
A9: 4號碼頭 | B9: 160 | C9: 30 | D9: 9 | E9: 10000
A10: 5號碼頭 | B10: 231 | C10: 19 | D10: 7.5 | E10: 6000
A11: 6號碼頭 | B11: 150 | C11: 18 | D11: 7.5 | E11: 6000
A12: 7號碼頭 | B12: 150 | C12: 18 | D12: 7.5 | E12: 6000
A13: 8號碼頭 | B13: 200 | C13: 20 | D13: 5 | E13: 1000
A14: 9號碼頭 | B14: 200 | C14: 20 | D14: 7 | E14: 6000
A15: 21號碼頭 | B15: 230 | C15: 30 | D15: 11 | E15: 20000
A16: 22號碼頭 | B16: 200 | C16: 30 | D16: 11 | E16: 20000
A17: 23號碼頭 | B17: 200 | C17: 30 | D17: 11 | E17: 20000
A18: 27號碼頭 | B18: 130 | C18: 25 | D18: 7.5 | E18: 1000
A19: 28號碼頭 | B19: 110 | C19: 30 | D19: 7.5 | E19: 6000
A20: 29號碼頭 | B20: 130 | C20: 30 | D20: 7.5 | E20: 6000
A21: 30號碼頭 | B21: 160 | C21: 30 | D21: 7.5-11.0 | E21: 20000
A22: 31號碼頭 | B22: 170 | C22: 20 | D22: 11 | E22: 20000

Sheet 表32
A1: 表 32 臺 中 港 碼 頭 概 況 ( 續 )
C2: 民國 100 年底
A3: 名 稱 | B3: 長 度 | C3: 寬 度 | D3: 深 度 | E3: 泊 船 總 噸
B4: ( 公 尺 ) | C4: ( 公 尺 ) | D4: ( 公 尺 ) | E4: ( 噸 )
A5: 總 計 | B5: =SUM(B6:B55) -> 12329 | C5: － | D5: － | E5: =SUM(E6:E55) -> 2368500
A6: 1號碼頭 | B6: 250 | C6: 20 | D6: 13 | E6: 50000
A7: 2號碼頭 | B7: 250 | C7: 20 | D7: 13 | E7: 50000
A8: 3號碼頭 | B8: 250 | C8: 20 | D8: 13 | E8: 50000
A9: 4號碼頭 | B9: 200 | C9: 20 | D9: 11 | E9: 30000
A10: 4A號碼頭 | B10: 185 | C10: 20 | D10: 9 | E10: 10000
A11: 5號碼頭 | B11: 200 | C11: 24 | D11: 11 | E11: 30000
A12: 5A號碼頭 | B12: 220 | C12: 20 | D12: 11 | E12: 30000
A13: 6號碼頭 | B13: 200 | C13: 24 | D13: 11 | E13: 30000
A14: 7號碼頭 | B14: 200 | C14: 24 | D14: 11 | E14: 30000
A15: 8號碼頭 | B15: 200 | C15: 24 | D15: 11 | E15: 30000
A16: 8A號碼頭 | B16: 260 | C16: 24 | D16: 11 | E16: 30000
A17: 9號碼頭 | B17: 260 | C17: 27 | D17: 14 | E17: 60000
A18: 10號碼頭 | B18: 320 | C18: 27 | D18: 13 | E18: 50000
A19: 11號碼頭 | B19: 320 | C19: 27 | D19: 13 | E19: 50000
A20: 12號碼頭 | B20: 200 | C20: 30 | D20: 11 | E20: 30000
A21: 13號碼頭 | B21: 200 | C21: 30 | D21: 11 | E21: 30000
A22: 14號碼頭 | B22: 180 | C22: 15.8 | D22: 10 | E22: 20000
A23: 15號碼頭 | B23: 180 | C23: 15.8 | D23: 10 | E23: 20000
A24: 19A號碼頭 | B24: 214 | C24: 22.3 | D24: 9 | E24: 15000
A25: 20號碼頭 | B25: 180 | C25: 23.5 | D25: 9 | E25: 15000
A26: 21號碼頭 | B26: 180 | C26: 23.5 | D26: 11 | E26: 15000
A27: 22號碼頭 | B27: 180 | C27: 24 | D27: 11 | E27: 30000
A28: 23號碼頭 | B28: 180 | C28: 25 | D28: 10 | E28: 20000
A29: 24號碼頭 | B29: 180 | C29: 25 | D29: 10 | E29: 20000
A30: 25號碼頭 | B30: 200 | C30: 25 | D30: 11 | E30: 30000
A31: 26號碼頭 | B31: 200 | C31: 30 | D31: 11 | E31: 30000
A32: 27號碼頭 | B32: 200 | C32: 30 | D32: 11 | E32: 30000
A33: 28號碼頭 | B33: 145 | C33: 30 | D33: 11 | E33: 30000
A34: 29號碼頭 | B34: 250 | C34: 30 | D34: 14 | E34: 60000
A35: 30號碼頭 | B35: 320 | C35: 32 | D35: 14 | E35: 60000
A36: 31號碼頭 | B36: 320 | C36: 30 | D36: 14 | E36: 60000
A37: 32號碼頭 | B37: 320 | C37: 30 | D37: 14 | E37: 60000
A38: 33號碼頭 | B38: 250 | C38: 30 | D38: 14 | E38: 60000
A39: 34號碼頭 | B39: 250 | C39: 30 | D39: 14 | E39: 60000
A40: 35號碼頭 | B40: 340 | C40: 34.6 | D40: 14 | E40: 60000
A41: 43號碼頭 | B41: 250 | C41: 28.7 | D41: 14 | E41: 66000
A42: 西1號碼頭 | B42: 250 | C42: 25 | D42: 13 | E42: 50000
A43: 西2號碼頭 | B43: 250 | C43: 30 | D43: 14 | E43: 60000
A44: 西3號碼頭 | B44: 250 | C44: 27 | D44: 14 | E44: 60000
A45: 西4號碼頭 | B45: 250 | C45: 27 | D45: 14 | E45: 60000
A46: 西5號碼頭 | B46: 300 | C46: 27 | D46: 14 | E46: 60000
A47: 西6號碼頭 | B47: 250 | C47: 27 | D47: 14 | E47: 60000
A48: 西7號碼頭 | B48: 250 | C48: 27 | D48: 14 | E48: 60000
A49: 西13號碼頭 | B49: 412 | C49: 45.5 | D49: 13 | E49: 72500
A50: 98號碼頭 | B50: 393 | C50: 35 | D50: 16 | E50: 125000
A51: 99號碼頭 | B51: 250 | C51: 30 | D51: 12 | E51: 40000
A52: 101號碼頭 | B52: 340 | C52: 38 | D52: 18 | E52: 125000
A53: 102號碼頭 | B53: 340 | C53: 38 | D53: 18 | E53: 125000
A54: 103號碼頭 | B54: 290 | C54: 43.5 | D54: 14.5 | E54: 60000
A55: 104號碼頭 | B55: 270 | C55: 35 | D55: 14 | E55: 60000

Sheet 表33
A1: 表 33 花 蓮 港 碼 頭 概 況
C2: 民國 100 年底
A3: 名 稱 | B3: 長 度 | C3: 寬 度 | D3: 深 度 | E3: 泊 船 總 噸
B4: ( 公 尺 ) | C4: ( 公 尺 ) | D4: ( 公 尺 ) | E4: ( 噸 )
A5: 總 計 | B5: =SUM(B6:B30) -> 4742 | C5: － | D5: － | E5: =SUM(E6:E30) -> 618000
A6: 1號碼頭 | B6: 123 | C6: 10 | D6: 7.5 | E6: 6000
A7: 2號碼頭 | B7: 153 | C7: 10 | D7: 7.5 | E7: 6000
A8: 3號碼頭 | B8: 134 | C8: 10 | D8: 7.5 | E8: 6000
A9: 4號碼頭 | B9: 160 | C9: 20 | D9: 8.5 | E9: 10000
A10: 5號碼頭 | B10: 160 | C10: 20 | D10: 8.5 | E10: 10000
A11: 6號碼頭 | B11: 150 | C11: 20 | D11: 8.5 | E11: 10000
A12: 7號碼頭 | B12: 120 | C12: 20 | D12: 6.5 | E12: 4000
A13: 8號碼頭 | B13: 220 | C13: 20 | D13: 10.5 | E13: 15000
A14: 9號碼頭 | B14: 103 | C14: 20 | D14: 9.5 | E14: 5000
A15: 10號碼頭 | B15: 183 | C15: 30 | D15: 9.5 | E15: 12000
A16: 11號碼頭 | B16: 185 | C16: 30 | D16: 9.5 | E16: 12000
A17: 12號碼頭 | B17: 150 | C17: 30 | D17: 7.5 | E17: 6000
A18: 13號碼頭 | B18: 185 | C18: 30 | D18: 9.5 | E18: 12000
A19: 14號碼頭 | B19: 185 | C19: 30 | D19: 9.5 | E19: 12000
A20: 15號碼頭 | B20: 100 | C20: 30 | D20: 8.5 | E20: 6000
A21: 16號碼頭 | B21: 144 | C21: 15 | D21: 7.5 | E21: 6000
A22: 17號碼頭 | B22: 200 | C22: 35 | D22: 12 | E22: 30000
A23: 18號碼頭 | B23: 200 | C23: 35 | D23: 12 | E23: 30000
A24: 19號碼頭 | B24: 310 | C24: 43 | D24: 14 | E24: 60000
A25: 20號碼頭 | B25: 302 | C25: 43 | D25: 14 | E25: 60000
A26: 21號碼頭 | B26: 200 | C26: 43 | D26: 14 | E26: 60000
A27: 22號碼頭 | B27: 200 | C27: 43 | D27: 14 | E27: 60000
A28: 23號碼頭 | B28: 272 | C28: 43 | D28: 14 | E28: 60000
A29: 24號碼頭 | B29: 271 | C29: 43 | D29: 14 | E29: 60000
A30: 25號碼頭 | B30: 332 | C30: 50 | D30: 16.5 | E30: 60000

Sheet 表34
A1: 表 34 中華郵政股份有限公司主要設備及郵路里程
A2: 民國100年底
A3: 分 類 | B3: 名 稱 | C3: 單 位 | D3: 數 量
A4: 分 信 設 備 | B4: 郵 件 分 揀 機 | C4: 臺 | D4: 36
A5: 受 信 設 備 | B5: 信 筒 箱 | C5: 個 | D5: 3923
A6: 終 端 設 備 | B6: 自 動 付 款 機 | C6: 臺 | D6: 1537
B7: 自 動 櫃 員 機 ( 含 補 摺 機 ) | C7: 臺 | D7: 3183
A8: 貨 車 | B8: 大 型 貨 車 | C8: 輛 | D8: 332
B9: 小 型 貨 車 | C9: 輛 | D9: 2452
A10: 機 器 腳 踏 車 | B10: 二 輪 機 踏 車 | C10: 輛 | D10: 8771
A11: 郵 資 蓋 銷 設 備 | B11: 郵 資 機 | C11: 具 | D11: 20
B12: 蓋 銷 機 | C12: 具 | D12: 409
A13: 計 算 機 具 | B13: 點 鈔 機 | C13: 臺 | D13: 7290
A14: 郵 路 里 程 | B14: 總 計 | C14: 公里 | D14: =SUM(D15:D17) -> 1920160.98
B15: 航 空 | C15: 公里 | D15: 1205582
B16: 水 路 | C16: 公里 | D16: 594968.98
B17: 陸 路 | C17: 公里 | D17: 119610

Sheet 表35
A1: 表 35 臺閩地區觀光遊憩區統計 | H1: 表 35 臺閩地區觀光遊憩區統計 ( 續 )
G2: 單位：處 | N2: 單位：處
A3: 年 底 別 | B3: 總 計 | C3: 國家公園 | D3: 國家風景區 | E3: 公營觀光區 | F3: 省級風景 | G3: 縣級風景 | H3: 年 底 別 | I3: 森林遊樂區 | J3: 海水浴場 | K3: 民營觀光區 | L3: 寺 廟 | M3: 古 蹟 | N3: 其 他
F4: 特 定 區 | G4: 特 定 區
A5: 88 年底 | B5: 230 | C5: 33 | D5: 19 | E5: 39 | F5: 30 | G5: 20 | H5: 88 年底 | I5: 17 | J5: 10 | K5: 55 | L5: 3 | M5: 12 | N5: 1
A6: 89 年底 | B6: 250 | C6: 34 | D6: 35 | E6: 39 | F6: 36 | G6: 19 | H6: 89 年底 | I6: 17 | J6: 12 | K6: 56 | L6: 5 | M6: 12 | N6: 1
A7: 90 年底 | B7: 263 | C7: 38 | D7: 37 | E7: 47 | F7: 33 | G7: 19 | H7: 90 年底 | I7: 17 | J7: 12 | K7: 54 | L7: 5 | M7: 14 | N7: 3
A8: 91 年底 | B8: 252 | C8: 32 | D8: 65 | E8: 50 | F8: － | G8: 16 | H8: 91 年底 | I8: 21 | J8: 13 | K8: 50 | L8: 6 | M8: 14 | N8: 3
A9: 92 年底 | B9: 279 | C9: 34 | D9: 75 | E9: 59 | F9: － | G9: 17 | H9: 92 年底 | I9: 21 | J9: 13 | K9: 52 | L9: 8 | M9: 13 | N9: 6
A10: 93 年底 | B10: 285 | C10: 34 | D10: 75 | E10: 65 | F10: － | G10: 14 | H10: 93 年底 | I10: 21 | J10: 12 | K10: 47 | L10: 7 | M10: 17 | N10: 9
A11: 94 年底 | B11: 301 | C11: 38 | D11: 80 | E11: 72 | F11: － | G11: 15 | H11: 94 年底 | I11: 21 | J11: 12 | K11: 43 | L11: 7 | M11: 18 | N11: 13
A12: 95 年底 | B12: 298 | C12: 35 | D12: 79 | E12: 72 | F12: － | G12: 15 | H12: 95 年底 | I12: 21 | J12: 10 | K12: 43 | L12: 7 | M12: 20 | N12: 13
A13: 96 年底 | B13: 295 | C13: 35 | D13: 83 | E13: 73 | F13: － | G13: 14 | H13: 96 年底 | I13: 22 | J13: 10 | K13: 41 | L13: 7 | M13: 21 | N13: 12
A14: 97 年底 | B14: 297 | C14: 36 | D14: 87 | E14: 72 | F14: － | G14: 15 | H14: 97 年底 | I14: 22 | J14: 9 | K14: 40 | L14: 7 | M14: 21 | N14: 13
A15: 98 年底 | B15: 300 | C15: 37 | D15: 90 | E15: 70 | F15: － | G15: 14 | H15: 98 年底 | I15: 22 | J15: 9 | K15: 41 | L15: 7 | M15: 20 | N15: 14
A16: 99 年底 | B16: 302 | C16: 37 | D16: 89 | E16: 70 | F16: － | G16: 14 | H16: 99 年底 | I16: 22 | J16: 9 | K16: 42 | L16: 9 | M16: 20 | N16: 14
A17: 100 年底 | B17: 303 | C17: 39 | D17: 86 | E17: 71 | F17: － | G17: 14 | H17: 100 年底 | I17: 21 | J17: 6 | K17: 42 | L17: 9 | M17: 21 | N17: 16
A18: 說明：1.本表部分觀光遊憩區劃屬二個類別，惟總計已剔除重複列計部分。
A19: 2.國家公園、國家風景區、公營觀光區、縣級風景特定區及森林遊樂區須具
A20: (1)面積10公頃以上之主要遊憩區(2)遊客中心(服務站)或收費處所。
A21: 3.海水浴場、民營觀光區、寺廟及古蹟須具遊客中心(服務站)或收費處所。

Sheet 表36
A1: 表 36 臺閩地區觀光旅館概況
B2: 總 計 | E2: 國際觀光旅館 | H2: 一般觀光旅館
A3: 年 底 別 | B3: 家數 | C3: 房間數 | D3: 員工 | E3: 家數 | F3: 房間數 | G3: 員工 | H3: 家數 | I3: 房間數 | J3: 員工
D4: 人數 | G4: 人數 | J4: 人數
B5: (家) | C5: (間) | D5: (人) | E5: (家) | F5: (間) | G5: (人) | H5: (家) | I5: (間) | J5: (人)
A6: 80 年 | B6: =SUM(E6+H6) -> 94 | C6: 19786 | D6: =SUM(G6,J6) -> 19003 | E6: 46 | F6: 14538 | G6: 17205 | H6: 48 | I6: 5248 | J6: 1798
A7: 85 年底 | B7: 78 | C7: 20007 | D7: 21398 | E7: 54 | F7: 17232 | G7: 19839 | H7: 24 | I7: 2775 | J7: 1559
A8: 86 年底 | B8: 76 | C8: 19402 | D8: 21535 | E8: 54 | F8: 16845 | G8: 20089 | H8: 22 | I8: 2557 | J8: 1446
A9: 87 年底 | B9: =SUM(E9+H9) -> 77 | C9: 19409 | D9: 21855 | E9: 54 | F9: 16756 | G9: 20228 | H9: 23 | I9: 2653 | J9: 1627
A10: 88 年底 | B10: 80 | C10: 20274 | D10: 21953 | E10: 56 | F10: 17403 | G10: 20406 | H10: 24 | I10: 2871 | J10: 1547
A11: 89 年底 | B11: 80 | C11: 19928 | D11: 21854 | E11: 56 | F11: 17057 | G11: 20125 | H11: 24 | I11: 2871 | J11: 1729
A12: 90 年底 | B12: 83 | C12: 20789 | D12: 20978 | E12: 58 | F12: 17815 | G12: 19093 | H12: 25 | I12: 2974 | J12: 1885
A13: 91 年底 | B13: =SUM(E13+H13) -> 87 | C13: 21763 | D13: 21081 | E13: 62 | F13: 18790 | G13: 19221 | H13: 25 | I13: 2973 | J13: 1860
A14: 92 年底 | B14: 87 | C14: 21896 | D14: =SUM(G14,J14) -> 19853 | E14: 62 | F14: 18776 | G14: 18100 | H14: 25 | I14: 3120 | J14: 1753
A15: 93 年底 | B15: 87 | C15: 21744 | D15: =SUM(G15,J15) -> 19807 | E15: 61 | F15: 18705 | G15: 17952 | H15: 26 | I15: 3039 | J15: 1855
A16: 94 年底 | B16: 87 | C16: 21434 | D16: =SUM(G16,J16) -> 20160 | E16: 60 | F16: 18385 | G16: 18323 | H16: 27 | I16: 3049 | J16: 1837
A18: 95 年底 | B18: =SUM(E18+H18) -> 89 | C18: 21095 | D18: =SUM(G18,J18) -> 21069 | E18: 60 | F18: 17830 | G18: 18877 | H18: 29 | I18: 3265 | J18: 2192
A19: 96 年底 | B19: 90 | C19: 21171 | D19: 20568 | E19: 60 | F19: 17733 | G19: 18298 | H19: 30 | I19: 3438 | J19: 2270
A20: 97 年底 | B20: =SUM(E20+H20) -> 92 | C20: 21771 | D20: 20697 | E20: 61 | F20: 18092 | G20: 18441 | H20: 31 | I20: 3679 | J20: 2256
A21: 98 年底 | B21: 95 | C21: 22395 | D21: 20800 | E21: 64 | F21: 18645 | G21: 18411 | H21: 31 | I21: 3750 | J21: 2389
A22: 99 年底 | B22: =SUM(E22+H22) -> 104 | C22: =SUM(F22+I22) -> 24900 | D22: =SUM(G22,J22) -> 23935 | E22: 68 | F22: 19894 | G22: 20631 | H22: 36 | I22: 5006 | J22: 3304
A23: 100 年底 | B23: =SUM(E23+H23) -> 106 | C23: =SUM(F23+I23) -> 25333 | D23: =SUM(G23,J23) -> 24802 | E23: 70 | F23: 20382 | G23: 21333 | H23: 36 | I23: 4951 | J23: 3469
A24: 說明：本表國際觀光及一般觀光旅館之定義係依據發展觀光條例第2條第七項及觀光旅館
A25: 業管理規則之規定，為對旅客提供住宿及旅館相關服務之營利事業。

Sheet 表37
A1: 表 37 臺閩地區觀光旅館－按縣市別分
A2: 民國 100 年底
A3: 縣 市 別 | B3: 家 數 | D3: 房 間 數 | F3: 員 工 人 數
B4: ( 家 ) | D4: ( 間 ) | F4: ( 人 )
A5: 臺灣地區 | B5: =SUM(B6:B11) -> 106 | D5: =SUM(D6:D11) -> 25333 | F5: =SUM(F6:F11) -> 24802
A6: 新北市 | B6: 5 | D6: 472 | F6: 395
A7: 臺北市 | B7: 39 | D7: 10363 | F7: 12080
A8: 臺中市 | B8: 7 | D8: 1479 | F8: 1196
A9: 臺南市 | B9: 6 | D9: 1241 | F9: 1187
A10: 高雄市 | B10: 11 | D10: 3866 | F10: 3512
A11: 臺灣省 | B11: =SUM(B12:B26) -> 38 | D11: =SUM(D12:D26) -> 7912 | F11: =SUM(F12:F26) -> 6432
A12: 宜蘭縣 | B12: 5 | D12: 823 | F12: 899
A13: 桃園縣 | B13: 8 | D13: 1914 | F13: 1295
A14: 新竹縣 | B14: 2 | D14: 775 | F14: 397
A15: 苗栗縣 | B15: 1 | D15: 107 | F15: 82
A16: 彰化縣 | B16: － | D16: － | F16: －
A17: 南投縣 | B17: 4 | D17: 453 | F17: 646
A18: 雲林縣 | B18: － | D18: － | F18: －
A19: 嘉義縣 | B19: 2 | D19: 132 | F19: 153
A20: 屏東縣 | B20: 3 | D20: 777 | F20: 608
A21: 臺東縣 | B21: 2 | D21: 459 | F21: 390
A22: 花蓮縣 | B22: 6 | D22: 1543 | F22: 1136
A23: 澎湖縣 | B23: 1 | D23: 78 | F23: 18
A24: 基隆市 | B24: 1 | D24: 141 | F24: 61
A25: 新竹市 | B25: 2 | D25: 465 | F25: 544
A26: 嘉義市 | B26: 1 | D26: 245 | F26: 203
A27: 說明：福建省之金門縣及連江縣無觀光旅館。

Sheet 表38
A1: 表 38 臺閩地區一般旅館－按縣市別分
A2: 年 底 別／ | B2: 家 數 ( 家 ) | D2: 房 間 數 ( 間 ) | F2: 員 工 人 數 ( 人 )
A3: 縣 市 別
A4: 91 年 | B4: 3208 | D4: 114070 | F4: 31017
A5: 92 年 | B5: 3199 | D5: 114957 | F5: 31237
A6: 93 年底 | B6: 2547 | D6: 93959 | F6: 27299
A7: 94 年底 | B7: 2561 | D7: 95131 | F7: 28561
A8: 95 年底 | B8: 2598 | D8: 99192 | F8: 32401
A9: 96 年底 | B9: 2645 | D9: 102326 | F9: 34658
A10: 97 年底 | B10: 2673 | D10: 105179 | F10: 37149
A11: 98 年底 | B11: 2680 | D11: 106863 | F11: 38124
A12: 99 年底 | B12: 2678 | D12: 108905 | F12: 39165
A13: 100 年底 | B13: 2692 | D13: 110772 | F13: 40193
A14: 臺灣地區 | B14: =SUM(B15:B20) -> 2668 | D14: =SUM(D15:D20) -> 109633 | F14: 39833
A15: 新北市 | B15: 235 | D15: 9438 | F15: 4220
A16: 臺北市 | B16: 332 | D16: 15024 | F16: 6191
A17: 臺中市 | B17: 277 | D17: 12144 | F17: 4390
A18: 臺南市 | B18: 199 | D18: 7034 | F18: 2628
A19: 高雄市 | B19: 349 | D19: 15179 | F19: 4734
A20: 臺灣省 | B20: =SUM(B21:B35) -> 1276 | D20: =SUM(D21:D35) -> 50814 | F20: 17670
A21: 宜蘭縣 | B21: 179 | D21: 5615 | F21: 2169
A22: 桃園縣 | B22: 196 | D22: 8101 | F22: 3259
A23: 新竹縣 | B23: 36 | D23: 1235 | F23: 448
A24: 苗栗縣 | B24: 70 | D24: 2031 | F24: 702
A25: 彰化縣 | B25: 69 | D25: 2044 | F25: 759
A26: 南投縣 | B26: 101 | D26: 5267 | F26: 1514
A27: 雲林縣 | B27: 70 | D27: 2134 | F27: 744
A28: 嘉義縣 | B28: 65 | D28: 1996 | F28: 464
A29: 屏東縣 | B29: 102 | D29: 4397 | F29: 1871
A30: 臺東縣 | B30: 88 | D30: 4314 | F30: 1334
A31: 花蓮縣 | B31: 124 | D31: 5466 | F31: 1562
A32: 澎湖縣 | B32: 47 | D32: 2343 | F32: 592
A33: 基隆市 | B33: 30 | D33: 1224 | F33: 398
A34: 新竹市 | B34: 53 | D34: 2829 | F34: 1292
A35: 嘉義市 | B35: 46 | D35: 1818 | F35: 562
A36: 福建省 | B36: =SUM(B37:B38) -> 24 | D36: =SUM(D37:D38) -> 1139 | F36: =SUM(F37:F38) -> 360
A37: 金門縣 | B37: 22 | D37: 1084 | F37: 340
A38: 連江縣 | B38: 2 | D38: 55 | F38: 20
A39: 說明：本表一般旅館資料係依法辦妥公司登記或商業登記，並向地方主管機關(旅
A40: 館所在地縣市政府)申請登記，已領取旅館業登記證及旅館業專用核章之旅
A41: 館。

Sheet 表39
A1: 表 39 臺閩地區觀光旅館及一般旅館家數－按房間規模分
C2: 民國 100 年底 | E2: 單位：家
A3: 房 間 數 | B3: 總 計 | C3: 國際觀光旅館 | D3: 一般觀光旅館 | E3: 一 般 旅 館
A4: 總 計 | B4: =SUM(B5:B11) -> 2798 | C4: =SUM(C5:C11) -> 70 | D4: =SUM(D5:D11) -> 36 | E4: =SUM(E5:E11) -> 2692
A5: 未滿 50 間 | B5: =SUM(C5:E5) -> 2017 | C5: － | D5: 4 | E5: 2013
A6: 50－99 間 | B6: 525 | C6: 4 | D6: 9 | E6: 512
A7: 100－199 間 | B7: 164 | C7: 14 | D7: 15 | E7: 135
A8: 200－299 間 | B8: 58 | C8: 27 | D8: 7 | E8: 24
A9: 300－399 間 | B9: 19 | C9: 12 | D9: 1 | E9: 6
A10: 400－499 間 | B10: 8 | C10: 7 | D10: － | E10: 1
A11: 500 間以上 | B11: 7 | C11: 6 | D11: － | E11: 1

Sheet 表40
A1: 表 40 臺 閩 地 區 旅 行 業 家 數
I2: 單位：家
A3: 年底別 | B3: 總 計
B4: 計 | C4: 新北市 | D4: 臺北市 | E4: 臺中市 | F4: 臺南市 | G4: 高雄市 | H4: 臺灣省 | I4: 福建省
A5: 86 年 | B5: =SUM(J5,B29,J29) -> 68 | D5: =SUM(L5,D29,L29) -> 50 | G5: =SUM(O5,G29,O29) -> 18 | H5: 7
A6: 87 年 | B6: =SUM(D6:I6) -> 78 | D6: =SUM(L6,D30,L30) -> 55 | G6: 16 | H6: 7 | I6: －
A7: 88年底 | B7: =SUM(D7:I7) -> 82 | D7: =SUM(L7,D31,L31) -> 58 | G7: 16 | H7: 8 | I7: －
A8: 89年底 | B8: =SUM(D8:I8) -> 86 | D8: =SUM(L8,D32,L32) -> 62 | G8: 16 | H8: 8 | I8: =SUM(I32,Q32) -> 0
A9: 90年底 | B9: =SUM(C9:I9) -> 1840 | C9: － | D9: 968 | E9: － | F9: － | G9: 234 | H9: 623 | I9: 15
A10: 91年底 | B10: =SUM(C10:I10) -> 1885 | C10: － | D10: 981 | E10: － | F10: － | G10: 238 | H10: 651 | I10: 15
A11: 92年底 | B11: 1923 | C11: － | D11: 985 | E11: － | F11: － | G11: 241 | H11: 683 | I11: 14
A12: 93年底 | B12: 2000 | C12: － | D12: 997 | E12: － | F12: － | G12: 246 | H12: 743 | I12: 14
A13: 94年底 | B13: 2052 | C13: － | D13: 1017 | E13: － | F13: － | G13: 246 | H13: 774 | I13: 15
A14: 95年底 | B14: 2060 | C14: － | D14: 1026 | E14: － | F14: － | G14: 246 | H14: 773 | I14: 15
A15: 96年底 | B15: 2178 | C15: － | D15: 1048 | E15: － | F15: － | G15: 247 | H15: 867 | I15: 16
A16: 97年底 | B16: 2230 | C16: － | D16: 1065 | E16: － | F16: － | G16: 249 | H16: 899 | I16: 17
A17: 98年底 | B17: 2227 | C17: － | D17: 1064 | E17: － | F17: － | G17: 247 | H17: 899 | I17: 17
A18: 99年底 | B18: 2241 | C18: － | D18: 1062 | E18: － | F18: － | G18: 240 | H18: 921 | I18: 18
A19: 100年底 | B19: 2312 | C19: =SUM(C43+C65+C89) -> 66 | D19: =SUM(D43+D65+D89) -> 1095 | E19: =SUM(E43+E65+E89) -> 233 | F19: =SUM(F43+F65+F89) -> 122 | G19: =SUM(G43+G65+G89) -> 267 | H19: =SUM(H65+H89) -> 509 | I19: 20
A20: 說明：1.自100年1月起，臺北縣、臺中市及臺南市改制直轄市，其中臺北縣更名為新北市。
A21: 2.福建省包含金門、連江二縣資料。
A25: 表40 臺 閩 地 區 旅 行 業 家 數 ( 續 1 )
I26: 單位：家
A27: 年底別 | B27: 綜 合 旅 行 業
B28: 計 | C28: 新北市 | D28: 臺北市 | E28: 臺中市 | F28: 臺南市 | G28: 高雄市 | H28: 臺灣省 | I28: 福建省
A29: 86年底 | B29: =SUM(D29:G29) -> 68 | D29: 50 | G29: 18 | H29: 7
A30: 87年底 | B30: =SUM(D30:I30) -> 78 | D30: 55 | G30: 16 | H30: 7 | I30: －
A31: 88年底 | B31: =SUM(D31:I31) -> 82 | D31: 58 | G31: 16 | H31: 8 | I31: －
A32: 89年底 | B32: 86 | D32: 62 | G32: 16 | H32: 8 | I32: －
A33: 90年底 | B33: 85 | C33: － | D33: 61 | E33: － | F33: － | G33: 18 | H33: 6 | I33: －
A34: 91年底 | B34: 84 | C34: － | D34: 60 | E34: － | F34: － | G34: 18 | H34: 6 | I34: －
A35: 92年底 | B35: 79 | C35: － | D35: 54 | E35: － | F35: － | G35: 18 | H35: 7 | I35: －
A36: 93年底 | B36: 82 | C36: － | D36: 57 | E36: － | F36: － | G36: 18 | H36: 7 | I36: －
A37: 94年底 | B37: 81 | C37: － | D37: 58 | E37: － | F37: － | G37: 19 | H37: 4 | I37: －
A38: 95年底 | B38: =SUM(D38:I38) -> 89 | C38: － | D38: 67 | E38: － | F38: － | G38: 19 | H38: 3 | I38: －
A39: 96年底 | B39: =SUM(D39:I39) -> 89 | C39: － | D39: 67 | E39: － | F39: － | G39: 19 | H39: 3 | I39: －
A40: 97年底 | B40: =SUM(D40:I40) -> 92 | C40: － | D40: 69 | E40: － | F40: － | G40: 19 | H40: 4 | I40: －
A41: 98年底 | B41: =SUM(D41:I41) -> 89 | C41: － | D41: 68 | E41: － | F41: － | G41: 17 | H41: 4 | I41: －
A42: 99年底 | B42: =SUM(D42:I42) -> 94 | C42: － | D42: 71 | E42: － | F42: － | G42: 17 | H42: 6 | I42: －
A43: 100年底 | B43: =SUM(C43:I43) -> 97 | C43: 2 | D43: 73 | E43: 2 | F43: 2 | G43: 18 | H43: － | I43: －
A44: 說明：綜合旅行業係經營旅遊批發業務，可委託甲種與乙種旅行社代為招攬其相關業務。
A47: 表 40 臺 閩 地 區 旅 行 業 家 數 ( 續 2 )
I48: 單位：家
A49: 年底別 | B49: 甲 種 旅 行 業
B50: 計 | C50: 新北市 | D50: 臺北市 | E50: 臺中市 | F50: 臺南市 | G50: 高雄市 | H50: 臺灣省 | I50: 福建省
A51: 86年底 | B51: =SUM(D51:G51) -> 1004 | D51: 817 | G51: 187 | H51: 431
A52: 87年底 | B52: =SUM(D52:I52) -> 1442 | D52: 811 | G52: 191 | H52: 440 | I52: －
A53: 88年底 | B53: 1553 | D53: 853 | G53: 197 | H53: 503 | I53: －
A54: 89年底 | B54: 1619 | D54: 893 | G54: 201 | H54: 521 | I54: 4
A55: 90年底 | B55: 1648 | C55: － | D55: 893 | E55: － | F55: － | G55: 200 | H55: 546 | I55: 9
A56: 91年底 | B56: 1698 | C56: － | D56: 911 | E56: － | F56: － | G56: 202 | H56: 574 | I56: 11
A57: 92年底 | B57: 1737 | C57: － | D57: 921 | E57: － | F57: － | G57: 205 | H57: 599 | I57: 12
A58: 93年底 | B58: 1803 | C58: － | D58: 931 | E58: － | F58: － | G58: 211 | H58: 648 | I58: 13
A59: 94年底 | B59: 1842 | C59: － | D59: 948 | E59: － | F59: － | G59: 213 | H59: 667 | I59: 14
A60: 95年底 | B60: 1896 | C60: － | D60: 963 | E60: － | F60: － | G60: 215 | H60: 704 | I60: 14
A61: 96年底 | B61: 1939 | C61: － | D61: 969 | E61: － | F61: － | G61: 216 | H61: 739 | I61: 15
A62: 97年底 | B62: 1989 | C62: － | D62: 986 | E62: － | F62: － | G62: 220 | H62: 767 | I62: 16
A63: 98年底 | B63: 1927 | C63: － | D63: 944 | E63: － | F63: － | G63: 210 | H63: 757 | I63: 16
A64: 99年底 | B64: =SUM(C64:I64) -> 1978 | C64: － | D64: 980 | E64: － | F64: － | G64: 209 | H64: 771 | I64: 18
A65: 100年底 | B65: =SUM(C65:I65) -> 2038 | C65: 53 | D65: 1008 | E65: 215 | F65: 114 | G65: 232 | H65: 396 | I65: 20
A66: 說明：甲種旅行業係主要經營國內外旅遊，接受旅客委託代辦出、入境及簽證手續，及代客購
A67: 買國內外客票等業務；自98年3月14日起並可代理外國旅行業辦理聯絡、推廣、報價等
A68: 業務。
A71: 表 40 臺 閩 地 區 旅 行 業 家 數 ( 續完 )
I72: 單位：家
A73: 年底別 | B73: 乙 種 旅 行 業 | L73: c
B74: 計 | C74: 新北市 | D74: 臺北市 | E74: 臺中市 | F74: 臺南市 | G74: 高雄市 | H74: 臺灣省 | I74: 福建省
A75: 86年底 | B75: =SUM(D75:G75) -> 23 | D75: 11 | G75: 12 | H75: 61
A76: 87年底 | B76: =SUM(D76:I76) -> 107 | D76: 16 | G76: 15 | H76: 76 | I76: －
A77: 88年底 | B77: =SUM(D77:I77) -> 107 | D77: 15 | G77: 15 | H77: 77 | I77: －
A78: 89年底 | B78: 109 | D78: 16 | G78: 17 | H78: 66 | I78: 10
A79: 90年底 | B79: 107 | C79: － | D79: 14 | E79: － | F79: － | G79: 16 | H79: 71 | I79: 6
A80: 91年底 | B80: 103 | C80: － | D80: 10 | E80: － | F80: － | G80: 18 | H80: 71 | I80: 4
A81: 92年底 | B81: 107 | C81: － | D81: 10 | E81: － | F81: － | G81: 18 | H81: 77 | I81: 2
A82: 93年底 | B82: 115 | C82: － | D82: 9 | E82: － | F82: － | G82: 17 | H82: 88 | I82: 1
A83: 94年底 | B83: 129 | C83: － | D83: 11 | E83: － | F83: － | G83: 14 | H83: 103 | I83: 1
A84: 95年底 | B84: =SUM(D84:I84) -> 141 | C84: － | D84: 13 | E84: － | F84: － | G84: 14 | H84: 113 | I84: 1
A85: 96年底 | B85: =SUM(D85:I85) -> 150 | C85: － | D85: 12 | E85: － | F85: － | G85: 12 | H85: 125 | I85: 1
A86: 97年底 | B86: =SUM(D86:I86) -> 149 | C86: － | D86: 10 | E86: － | F86: － | G86: 10 | H86: 128 | I86: 1
A87: 98年底 | B87: =SUM(D87:I87) -> 146 | C87: － | D87: 9 | E87: － | F87: － | G87: 10 | H87: 127 | I87: －
A88: 99年底 | B88: =SUM(C88:I88) -> 169 | C88: － | D88: 11 | E88: － | F88: － | G88: 14 | H88: 144 | I88: －
A89: 100年底 | B89: =SUM(C89:I89) -> 177 | C89: 11 | D89: 14 | E89: 16 | F89: 6 | G89: 17 | H89: 113 | I89: －
A90: 說明：乙種旅行業係主要經營國內旅遊及代客購買國內客票等業務。

Sheet 表41
A1: 表 41 臺閩地區氣象測站概況
F2: 單位：站
A3: 年 底 別 | B3: 氣 象 站 | C3: 雷 達 站 | D3: 自動雨量站 | E3: 自動氣象站 | F3: 專 用 氣 象
F4: 觀 測 站
A5: 60 年底 | B5: 24 | C5: 2 | D5: － | E5: － | F5: 1137
A6: 70年底 | B6: 26 | C6: 2 | D6: － | E6: － | F6: 1072
A7: 80年底 | B7: 29 | C7: 2 | D7: 57 | E7: 27 | F7: 917
A8: 90 年底 | B8: 46 | C8: 3 | D8: 222 | E8: 102 | F8: 779
A9: 91 年底 | B9: 47 | C9: 4 | D9: 257 | E9: 105 | F9: 765
A10: 92 年底 | B10: 49 | C10: 4 | D10: 259 | E10: 103 | F10: 595
A11: 93 年底 | B11: 48 | C11: 4 | D11: 259 | E11: 115 | F11: 596
A13: 94 年底 | B13: 47 | C13: 4 | D13: 259 | E13: 117 | F13: 628
A14: 95 年底 | B14: 47 | C14: 4 | D14: 259 | E14: 117 | F14: 628
A15: 96 年底 | B15: 47 | C15: 4 | D15: 250 | E15: 135 | F15: 659
A16: 97 年底 | B16: 47 | C16: 4 | D16: 249 | E16: 137 | F16: 664
A17: 98 年底 | B17: 46 | C17: 4 | D17: 241 | E17: 153 | F17: 600
A18: 99 年底 | B18: 45 | C18: 4 | D18: 237 | E18: 159 | F18: 775
A19: 100 年底 | B19: 46 | C19: 4 | D19: 224 | E19: 210 | F19: 782
